Workbook

Sheet גיליון1
A1: =[1]הערות!A1 -> V2.01 | B1: =[1]הערות!C2 -> הראל חברה לביטוח בע"מ | BB1: 'נספחים ב וג'!$
B2: דו"ח חודשי , שיעורי ההשקעות ורכוש קבוע מסך כל ההתחייבויות לתקופה שנסתיימה ביום - | L2: 30/06/24 | AI2: =AJ2-1 -> 50 | AJ2: 51 | AK2: 52 | AL2: 53 | AM2: 54 | AN2: 55 | AO2: 56 | AP2: 57 | AQ2: 58 | AR2: 59 | AS2: 60 | AT2: 61 | AU2: 62 | AV2: 63 | AW2: =AX2-1 -> 64 | AX2: 65 | AY2: 66 | AZ2: 67 | BA2: =BB2-1 -> 68 | BB2: 69 | BC2: =BB2+1 -> 70 | BD2: =BC2+1 -> 71 | BE2: 72 | BF2: 73 | BG2: 74 | BH2: 75 | BI2: 76 | BJ2: 77 | BK2: 78 | BL2: 79 | BM2: 80 | BN2: 81 | BO2: 82 | BP2: 83 | BQ2: 84 | BR2: 85 | BS2: 86 | BT2: 87 | BU2: 88 | BV2: 89 | BW2: 90 | BX2: 91 | BY2: 92 | BZ2: 93 | CA2: 94 | CB2: 95 | CC2: 96 | CD2: 97 | CE2: 98 | CF2: 99
B3: =CONCATENATE([1]הערות!$G$103) -> הסכומים באלפי ש"ח | K3: =CONCATENATE(I1) ->  | AW3: =AV3+1 -> 1 | AX3: 2 | AY3: 3 | AZ3: 4 | BA3: 5 | BB3: 6 | BC3: 7 | BD3: 8 | BE3: 9 | BF3: 10 | BG3: 11 | BH3: 12 | BI3: 13 | BJ3: 14 | BK3: 15 | BL3: 16 | BM3: 17 | BN3: 18 | BO3: 19 | BP3: 20 | BQ3: 21 | BR3: 22 | BS3: 23 | BT3: 24 | BU3: 25 | BV3: 26 | BW3: 27 | BX3: 28 | BY3: 29 | BZ3: 30 | CA3: 31 | CB3: 32 | CC3: 33 | CD3: 34 | CE3: 35 | CF3: 36
J6: סה"כ משתתף ברווחים | K6: ביטוח חיים
K7: 10 | L7: 11 | M7: 12 | N7: 13
I8: חזרה | K8: ='[1]נספחים ב וג'!$B$10 -> קרן ח' | L8: ='[1]נספחים ב וג'!$B$11 -> קרן ט' | M8: ='[1]נספחים ב וג'!$B$12 -> קרן י' | N8: ='[1]נספחים ב וג'!$B$13 -> קרן י' פוליסות שהונפקו לאחר 1.1.04 | O8: ='[1]נספחים ב וג'!$C$30 -> הראל-מסלול כללי | P8: ='[1]נספחים ב וג'!$C$31 -> הראל-מסלול אג"ח ללא מניות | Q8: ='[1]נספחים ב וג'!$C$32 -> הראל-מסלול אג"ח עד 20% במניות | R8: ='[1]נספחים ב וג'!$C$33 -> הראל-מסלול אג"ח עד 10% במניות | S8: ='[1]נספחים ב וג'!$C$34 -> הראל-מסלול מניות | T8: ='[1]נספחים ב וג'!$C$35 -> הראל-מסלול שקלי טווח קצר | U8: ='[1]נספחים ב וג'!$C$36 -> הראל-מסלול חו"ל | V8: ='[1]נספחים ב וג'!$C$37 -> הראל - מסלול אג"ח מדינת ישראל | W8: ='[1]נספחים ב וג'!$C$38 -> הראל - מסלול אג"ח קונצרני | X8: ='[1]נספחים ב וג'!$C$39 -> הראל-מסלול משתתף ברווחים שקלי טווח קצר | Y8: ='[1]נספחים ב וג'!$C$40 -> הראל-מסלול משתתף ברווחים כללי ללא מניות | Z8: ='[1]נספחים ב וג'!$C$41 -> הראל-מסלול משתתף ברווחים לפחות 75% מניות | AA8: ='[1]נספחים ב וג'!$C$42 -> הראל- אג"ח חו"ל | AB8: ='[1]נספחים ב וג'!$C$43 -> הראל-מסלול פאסיבי - כללי | AC8: ='[1]נספחים ב וג'!$C$44 -> הראל-מסלול לבני 50 ומטה | AD8: ='[1]נספחים ב וג'!$C$45 -> הראל-מסלול לבני 50 עד 60 | AE8: ='[1]נספחים ב וג'!$C$46 -> הראל-מסלול לבני 60 ומעלה | AF8: ='[1]נספחים ב וג'!$C$47 -> הראל-מסלול בסיסי למקבלי קצבה | AG8: ='[1]נספחים ב וג'!$C$48 -> הראל-מסלול אג"ח עד 20% במניות למקבלי קצבה | AH8: ='[1]נספחים ב וג'!$C$49 -> הראל חברה לביטוח בע"מ מדרגות עד 50 | AI8: הראל מסלול לגילאי 50 עד 60 | AJ8: הראל מסלול לגילאי 60 ומעלה | AK8: הראל מסלול בסיסי למקבלי קצבה | AL8: הראל מסלול אג"ח עד 20% במניות למקבלי קצבה | AM8: הראל מסלול הוני ללא אג"ח | AN8: הראל מחקה מדד ממשלתי שקלי ריבית קבועה | AO8: הראל מחקה מדד S&P 500 | AP8: הראל מחקה מדד ממשלתי צמוד 5-10 | AQ8: הראל מחקה מדד תל בונד 60 | AR8: הראל מחקה מדד ת"א 35 | AS8: הראל מסלול עוקב מדדים גמיש | AT8: הראל מסלול משולב סחיר | AU8: הראל מסלול קיימות | AV8: הראל ביטוח פאסיבי מדדי מניות | AW8: =INDIRECT(CONCATENATE($BB$1,"C$",AW$2)) ->  | BB8: =INDIRECT(CONCATENATE($BB$1,"C$",BB$2)) ->  | BC8: =INDIRECT(CONCATENATE($BB$1,"C$",BC$2)) ->  | CG8: אחר
A9: שורה | K9: =IF('[1]נספחים ב וג'!$N$10=0,0,CONCATENATE(VLOOKUP($B$1,[1]הערות!$D$89:$F$111,3,0),"0",K7)) -> 259010 | L9: =IF('[1]נספחים ב וג'!$N$11=0,0,CONCATENATE(VLOOKUP($B$1,[1]הערות!$D$89:$F$111,3,0),"0",L7)) -> 259011 | M9: =IF('[1]נספחים ב וג'!$N$12=0,0,CONCATENATE(VLOOKUP($B$1,[1]הערות!$D$89:$F$111,3,0),"0",M7)) -> 259012 | N9: =IF('[1]נספחים ב וג'!$N$13=0,0,CONCATENATE(VLOOKUP($B$1,[1]הערות!$D$89:$F$111,3,0),"0",N7)) -> 259013 | O9: ='[1]נספחים ב וג'!$B$30 -> 88 | P9: ='[1]נספחים ב וג'!$B$31 -> 89 | Q9: ='[1]נספחים ב וג'!$B$32 -> 90 | R9: ='[1]נספחים ב וג'!$B$33 -> 91 | S9: ='[1]נספחים ב וג'!$B$34 -> 92 | T9: ='[1]נספחים ב וג'!$B$35 -> 93 | U9: ='[1]נספחים ב וג'!$B$36 -> 163 | V9: ='[1]נספחים ב וג'!$B$37 -> 177 | W9: ='[1]נספחים ב וג'!$B$38 -> 178 | X9: ='[1]נספחים ב וג'!$B$39 -> 195 | Y9: ='[1]נספחים ב וג'!$B$40 -> 196 | Z9: ='[1]נספחים ב וג'!$B$41 -> 197 | AA9: ='[1]נספחים ב וג'!$B$42 -> 8592 | AB9: ='[1]נספחים ב וג'!$B$43 -> 9561 | AC9: ='[1]נספחים ב וג'!$B$44 -> 9562 | AD9: ='[1]נספחים ב וג'!$B$45 -> 9563 | AE9: ='[1]נספחים ב וג'!$B$46 -> 9564 | AF9: ='[1]נספחים ב וג'!$B$47 -> 9565 | AG9: ='[1]נספחים ב וג'!$B$48 -> 9566 | AH9: ='[1]נספחים ב וג'!$B$49 -> 11400 | AI9: 11401 | AJ9: 11402 | AK9: 11403 | AL9: 11404 | AM9: 12981 | AN9: 13433 | AO9: 13434 | AP9: 13435 | AQ9: 13436 | AR9: 13437 | AS9: 14414 | AT9: 14210 | AU9: 14211 | AV9: 15029 | AW9: =INDIRECT(CONCATENATE($BB$1,"b$",AW$2)) ->  | BB9: =INDIRECT(CONCATENATE($BB$1,"b$",BB$2)) ->  | BC9: =INDIRECT(CONCATENATE($BB$1,"b$",BC$2)) -> 
A10: 10 | B10: 1. | C10: השקעות | J10: 81601228.5 | K10: 3406.198195 | L10: 935095.3634 | M10: 24328321.22 | N10: 860443.4345 | O10: 21019619.38 | P10: 949221.2317 | Q10: 4744843.14 | R10: 1014370.52 | S10: 2930188.439 | T10: 861482.3804 | U10: 3272789.37 | V10: 183568.6 | W10: 363969.81 | X10: 45932.67208 | Y10: 58494.06216 | Z10: 211741.4414 | AA10: 135504.54 | AB10: 543240.17 | AC10: 2706663.61 | AD10: 1819869.899 | AE10: 1874161.266 | AF10: 2434821.238 | AG10: 1001025.702 | AH10: 30405.23988 | AI10: 149882.0382 | AJ10: 249432.018 | AK10: 1640132.754 | AL10: 538768.4127 | AM10: 180301.59 | AN10: 40371.89 | AO10: 1986702.47 | AP10: 49156.94 | AQ10: 183403.95 | AR10: 174723.98 | AS10: 60086.39 | AT10: 11156.81 | AU10: 11753.8 | AV10: 109745.42 | AW10: 0 | AX10: 0 | AY10: 0 | AZ10: 0 | BA10: 0 | BB10: 0 | BC10: 0 | BD10: 0 | BE10: 0 | BF10: 0 | BG10: 0 | BH10: 0 | BI10: 0 | BJ10: 0 | BK10: 0 | BL10: 0 | BM10: 0 | BN10: 0 | BO10: 0 | BP10: 0 | BQ10: 0 | BR10: 0 | BS10: 0 | BT10: 0 | BU10: 0 | BV10: 0 | BW10: 0 | BX10: 0 | BY10: 0 | BZ10: 0 | CA10: 0 | CB10: 0 | CC10: 0 | CD10: 0 | CE10: 0 | CF10: 0 | CG10: 3886431.113
A11: =A10+1 -> 11 | C11: א. | D11: מזומנים ושווי מזומנים | J11: 6371841.068 | K11: 189.3217568 | L11: 67166.05712 | M11: 1987808.009 | N11: 70304.74217 | O11: 1276243.53 | P11: 91097.18855 | Q11: 229393.9 | R11: 26249.38 | S11: 309067.2827 | T11: 103059.258 | U11: 608414.12 | V11: 11849.41 | W11: 14726.41 | X11: 5494.932003 | Y11: 5613.701455 | Z11: 22333.83732 | AA11: 12980.72 | AB11: 29218.32 | AC11: 135964.6741 | AD11: 137816.4338 | AE11: 68967.73765 | AF11: 96909.26785 | AG11: 40797.90821 | AH11: 1527.355863 | AI11: 11350.3762 | AJ11: 9178.912346 | AK11: 65279.56215 | AL11: 21958.10179 | AM11: 13694.16 | AN11: 947.15 | AO11: 515897.03 | AP11: 1697.42 | AQ11: 7768.36 | AR11: 3188.51 | AS11: 3024.34 | AT11: 1844.82 | AU11: 1474.07 | AV11: 5423.15 | AW11: 0 | AX11: 0 | AY11: 0 | AZ11: 0 | BA11: 0 | BB11: 0 | BC11: 0 | BD11: 0 | BE11: 0 | BF11: 0 | BG11: 0 | BH11: 0 | BI11: 0 | BJ11: 0 | BK11: 0 | BL11: 0 | BM11: 0 | BN11: 0 | BO11: 0 | BP11: 0 | BQ11: 0 | BR11: 0 | BS11: 0 | BT11: 0 | BU11: 0 | BV11: 0 | BW11: 0 | BX11: 0 | BY11: 0 | BZ11: 0 | CA11: 0 | CB11: 0 | CC11: 0 | CD11: 0 | CE11: 0 | CF11: 0 | CG11: 355921.6075
A12: 12 | D12: (1 | E12: בישראל | J12: 6102671.786 | K12: 180.4874744 | L12: 64031.90114 | M12: 1895051.33 | N12: 67024.12636 | O12: 1196473.693 | P12: 91097.18855 | Q12: 226263.2672 | R12: 26243.43891 | S12: 283401.5568 | T12: 103059.258 | U12: 608414.12 | V12: 11849.41 | W12: 14726.21353 | X12: 5494.932003 | Y12: 5613.701455 | Z12: 22333.83732 | AA12: -4859.97801 | AB12: 29218.32 | AC12: 123388.3694 | AD12: 130396.2971 | AE12: 64774.39084 | AF12: 81510.67881 | AG12: 38650.32717 | AH12: 1527.355863 | AI12: 11350.3762 | AJ12: 9178.912346 | AK12: 65279.56215 | AL12: 21958.10179 | AM12: 13031.92275 | AN12: 947.15 | AO12: 515897.03 | AP12: 1697.42 | AQ12: 7768.36 | AR12: 3188.51 | AS12: 3024.34 | AT12: 1777.707625 | AU12: 1474.07 | AV12: 5423.15 | AW12: 0 | AX12: 0 | AY12: 0 | AZ12: 0 | BA12: 0 | BB12: 0 | BC12: 0 | BD12: 0 | BE12: 0 | BF12: 0 | BG12: 0 | BH12: 0 | BI12: 0 | BJ12: 0 | BK12: 0 | BL12: 0 | BM12: 0 | BN12: 0 | BO12: 0 | BP12: 0 | BQ12: 0 | BR12: 0 | BS12: 0 | BT12: 0 | BU12: 0 | BV12: 0 | BW12: 0 | BX12: 0 | BY12: 0 | BZ12: 0 | CA12: 0 | CB12: 0 | CC12: 0 | CD12: 0 | CE12: 0 | CF12: 0 | CG12: 354810.9498
A13: 13 | E13: א) | F13: יתרות מזומנים ועו"ש בשקלים חדשים | J13: 3525108.58 | K13: 111.2241631 | L13: 39459.2181 | M13: 1167812.331 | N13: 41303.15629 | O13: 627407.2 | P13: 78954.06673 | Q13: 174107.1 | R13: 16187.14 | S13: 172073.598 | T13: 96122.35124 | U13: 320361.58 | V13: 11246.73 | W13: 10863.65 | X13: 5125.068764 | Y13: 4865.403272 | Z13: 12434.39199 | AA13: 7791.94 | AB13: 27969.92 | AC13: 56772.03275 | AD13: 92452.41352 | AE13: 35507.20771 | AF13: 43012.80079 | AG13: 27768.39528 | AH13: 637.7472502 | AI13: 7614.256478 | AJ13: 4725.652288 | AK13: 28974.07921 | AL13: 14945.40472 | AM13: 9286.82 | AN13: 947.15 | AO13: 79084.46 | AP13: 1697.42 | AQ13: 7768.36 | AR13: 3188.51 | AS13: 3024.34 | AT13: 1296.14 | AU13: 1312.99 | AV13: 5374.97 | CG13: 285521.3598
A14: 14 | E14: ב) | F14: יתרות מזומנים ועו"ש נקובים במט"ח | J14: 1796628.161 | K14: 51.00385145 | L14: 18094.73807 | M14: 535521.4642 | N14: 18940.30927 | O14: 542898.6227 | P14: 9696.547583 | Q14: 41844.32719 | R14: 7970.648912 | S14: 106212.6981 | T14: 3.038018391 | U14: 181259.63 | V14: 0 | W14: 2724.853527 | X14: 0.1619816095 | Y14: 597.5324172 | Z14: 9529.80607 | AA14: -13222.55801 | AB14: 1248.4 | AC14: 63766.51011 | AD14: 34923.20277 | AE14: 26368.4459 | AF14: 34198.17417 | AG14: 8732.884412 | AH14: 857.5951552 | AI14: 3487.340511 | AJ14: 4067.467283 | AK14: 33409.1368 | AL14: 5856.044547 | AM14: 3588.242746 | AN14: 0 | AO14: 51194.28 | AP14: 0 | AQ14: 0 | AR14: 0 | AS14: 0 | AT14: 440.4576246 | AU14: 161.08 | AV14: 48.18 | CG14: 62157.89477
A15: 15 | E15: ג) | F15: פח"ק/פר"י | J15: 299607.6233 | K15: 18.22398919 | L15: 6465.360981 | M15: 191345.1063 | N15: 6767.488762 | O15: 25844.27 | P15: 2446.574235 | Q15: 10307.65 | R15: 2085.65 | S15: 4985.805447 | T15: 6933.868743 | U15: 12146.22 | V15: 602.68 | W15: 1137.67 | X15: 369.7012573 | Y15: 150.7657652 | Z15: 360.284553 | AA15: 570.64 | AC15: 2796.1693 | AD15: 2991.282033 | AE15: 2881.192281 | AF15: 4260.782122 | AG15: 2142.982014 | AH15: 31.41069988 | AI15: 246.3579666 | AJ15: 383.4577194 | AK15: 2870.127878 | AL15: 1153.387986 | AM15: 153.57 | AT15: 41.11 | CG15: 7117.83331
A16: 16 | E16: ד) | F16: פק"מ לתקופה של עד שלושה חודשים | J16: 386680.732 | K16: 0.03547063771 | L16: 12.58398886 | M16: 372.428499 | N16: 13.1720415 | O16: 323.6 | P16: 0 | Q16: 4.19 | S16: 129.4552943 | T16: 0 | W16: 0.04 | X16: 0 | Y16: 0 | Z16: 9.354705738 | AC16: 53.65724267 | AD16: 29.39875783 | AE16: 17.54494434 | AF16: 38.92172912 | AG16: 6.065466616 | AH16: 0.6027573315 | AI16: 2.421242169 | AJ16: 2.33505566 | AK16: 26.21827088 | AL16: 3.264533384 | AM16: 3.29 | AO16: 385618.29 | CG16: 13.86196688
A17: 17 | E17: ה) | F17: פיקדון צמוד מדד עד שלושה חודשים | J17: 0 | K17: 0 | L17: 0 | M17: 0 | N17: 0 | P17: 0 | S17: 0 | T17: 0 | X17: 0 | Y17: 0 | Z17: 0 | AC17: 0 | AD17: 0 | AE17: 0 | AF17: 0 | AG17: 0 | AH17: 0 | AI17: 0 | AJ17: 0 | AK17: 0 | AL17: 0 | CG17: 0
A18: 18 | E18: ו) | F18: פיקדון צמוד מט"ח עד שלושה חודשים (פצ"מ) | J18: 0 | K18: 0 | L18: 0 | M18: 0 | N18: 0 | P18: 0 | S18: 0 | T18: 0 | X18: 0 | Y18: 0 | Z18: 0 | AC18: 0 | AD18: 0 | AE18: 0 | AF18: 0 | AG18: 0 | AH18: 0 | AI18: 0 | AJ18: 0 | AK18: 0 | AL18: 0 | CG18: 0
A19: 19 | E19: ז) | F19: פיקדונות במט"ח עד שלושה חודשים | J19: 94646.69 | K19: 0 | L19: 0 | M19: 0 | N19: 0 | P19: 0 | S19: 0 | T19: 0 | U19: 94646.69 | X19: 0 | Y19: 0 | Z19: 0 | AC19: 0 | AD19: 0 | AE19: 0 | AF19: 0 | AG19: 0 | AH19: 0 | AI19: 0 | AJ19: 0 | AK19: 0 | AL19: 0 | CG19: 0
A20: 20 | D20: (2 | E20: בחו"ל | J20: 269169.2819 | K20: 8.834282415 | L20: 3134.155986 | M20: 92756.67855 | N20: 3280.615804 | O20: 79769.83733 | P20: 0 | Q20: 3130.632812 | R20: 5.941087561 | S20: 25665.72587 | T20: 0 | U20: 0 | V20: 0 | W20: 0.196473486 | X20: 0 | Y20: 0 | Z20: 0 | AA20: 17840.69801 | AB20: 0 | AC20: 12576.30473 | AD20: 7420.136719 | AE20: 4193.346814 | AF20: 15398.58903 | AG20: 2147.581041 | AH20: 0 | AI20: 0 | AJ20: 0 | AK20: 0 | AL20: 0 | AM20: 662.237254 | AN20: 0 | AO20: 0 | AP20: 0 | AQ20: 0 | AR20: 0 | AS20: 0 | AT20: 67.11237541 | AU20: 0 | AV20: 0 | AW20: 0 | AX20: 0 | AY20: 0 | AZ20: 0 | BA20: 0 | BB20: 0 | BC20: 0 | BD20: 0 | BE20: 0 | BF20: 0 | BG20: 0 | BH20: 0 | BI20: 0 | BJ20: 0 | BK20: 0 | BL20: 0 | BM20: 0 | BN20: 0 | BO20: 0 | BP20: 0 | BQ20: 0 | BR20: 0 | BS20: 0 | BT20: 0 | BU20: 0 | BV20: 0 | BW20: 0 | BX20: 0 | BY20: 0 | BZ20: 0 | CA20: 0 | CB20: 0 | CC20: 0 | CD20: 0 | CE20: 0 | CF20: 0 | CG20: 1110.657692
A21: 21 | E21: א) | F21: יתרות מזומנים ועו"ש נקובים במט"ח | J21: 269169.2819 | K21: 8.834282415 | L21: 3134.155986 | M21: 92756.67855 | N21: 3280.615804 | O21: 79769.83733 | Q21: 3130.632812 | R21: 5.941087561 | S21: 25665.72587 | W21: 0.196473486 | AA21: 17840.69801 | AC21: 12576.30473 | AD21: 7420.136719 | AE21: 4193.346814 | AF21: 15398.58903 | AG21: 2147.581041 | AM21: 662.237254 | AT21: 67.11237541 | CG21: 1110.657692
A22: 22 | E22: ב) | F22: פיקדונות במט"ח עד שלושה חודשים | J22: 0 | K22: 0 | L22: 0 | M22: 0 | N22: 0 | P22: 0 | S22: 0 | T22: 0 | X22: 0 | Y22: 0 | Z22: 0 | AC22: 0 | AD22: 0 | AE22: 0 | AF22: 0 | AG22: 0 | AH22: 0 | AI22: 0 | AJ22: 0 | AK22: 0 | AL22: 0 | CG22: 0
A23: 23 | AC23: 0 | AD23: 0 | AE23: 0 | AF23: 0 | AG23: 0 | AH23: 0 | AI23: 0 | AJ23: 0 | AK23: 0 | AL23: 0 | CG23: 0
A24: 24 | C24: ב. | D24: ניירות ערך (למעט בחברות מוחזקות) | J24: 62533658.95 | K24: 2735.248732 | L24: 702775.1036 | M24: 17497562.16 | N24: 618853.3254 | O24: 16085995.93 | P24: 633273.0594 | Q24: 3854138.33 | R24: 857501.31 | S24: 2570384.865 | T24: 755136.0031 | U24: 2618075.51 | V24: 172382.5 | W24: 266202.1 | X24: 40262.47686 | Y24: 39024.32063 | Z24: 185741.2953 | AA24: 122890.9 | AB24: 504944.97 | AC24: 2236905.269 | AD24: 1454026.253 | AE24: 1464578.014 | AF24: 1934483.945 | AG24: 794863.505 | AH24: 25128.22098 | AI24: 119751.6473 | AJ24: 194920.6059 | AK24: 1303097.915 | AL24: 427808.545 | AM24: 164173.93 | AN24: 39399.54 | AO24: 1467639.76 | AP24: 47268.59 | AQ24: 173039.21 | AR24: 170589.96 | AS24: 57076.1 | AT24: 9114.08 | AU24: 10279.36 | AV24: 97955.7 | AW24: 0 | AX24: 0 | AY24: 0 | AZ24: 0 | BA24: 0 | BB24: 0 | BC24: 0 | BD24: 0 | BE24: 0 | BF24: 0 | BG24: 0 | BH24: 0 | BI24: 0 | BJ24: 0 | BK24: 0 | BL24: 0 | BM24: 0 | BN24: 0 | BO24: 0 | BP24: 0 | BQ24: 0 | BR24: 0 | BS24: 0 | BT24: 0 | BU24: 0 | BV24: 0 | BW24: 0 | BX24: 0 | BY24: 0 | BZ24: 0 | CA24: 0 | CB24: 0 | CC24: 0 | CD24: 0 | CE24: 0 | CF24: 0 | CG24: 2813679.389
A25: 25 | D25: (1 | E25: אגרות חוב ממשלתיות: | J25: 15574520.64 | K25: 1463.083642 | L25: 251446.558 | M25: 4140302.026 | N25: 146434.0948 | O25: 3531979.21 | P25: 320259.8114 | Q25: 1132710.22 | R25: 231255.72 | S25: 248748.0355 | T25: 753100.4834 | U25: 660535.74 | V25: 172203.48 | W25: 1674.07 | X25: 40153.94665 | Y25: 19735.43858 | Z25: 17975.0445 | AA25: 22144.59 | AB25: 0 | AC25: 524707.7779 | AD25: 414888.7411 | AE25: 490000.5184 | AF25: 467685.3135 | AG25: 288123.8105 | AH25: 5894.292071 | AI25: 34169.67891 | AJ25: 65214.14158 | AK25: 315039.9665 | AL25: 155072.9495 | AM25: 9105.41 | AN25: 0 | AO25: 71048.33 | AP25: 0 | AQ25: 0 | AR25: 0 | AS25: 0 | AT25: 1036.7 | AU25: 0 | AV25: 0 | AW25: 0 | AX25: 0 | AY25: 0 | AZ25: 0 | BA25: 0 | BB25: 0 | BC25: 0 | BD25: 0 | BE25: 0 | BF25: 0 | BG25: 0 | BH25: 0 | BI25: 0 | BJ25: 0 | BK25: 0 | BL25: 0 | BM25: 0 | BN25: 0 | BO25: 0 | BP25: 0 | BQ25: 0 | BR25: 0 | BS25: 0 | BT25: 0 | BU25: 0 | BV25: 0 | BW25: 0 | BX25: 0 | BY25: 0 | BZ25: 0 | CA25: 0 | CB25: 0 | CC25: 0 | CD25: 0 | CE25: 0 | CF25: 0 | CG25: 1040411.453
A26: 26 | E26: א) | F26: בישראל | J26: 15361429.47 | K26: 1461.815076 | L26: 250996.5065 | M26: 4126982.559 | N26: 145963.0122 | O26: 3518765.59 | P26: 319227.1946 | Q26: 1127166.8 | R26: 230227.57 | S26: 248748.0355 | T26: 753100.4834 | U26: 544273.75 | V26: 172203.48 | W26: 298.77 | X26: 40153.94665 | Y26: 19671.80541 | Z26: 17975.0445 | AA26: 9318.02 | AB26: 0 | AC26: 523605.7673 | AD26: 413195.6055 | AE26: 488353.5971 | AF26: 465889.8531 | AG26: 286991.018 | AH26: 5881.912662 | AI26: 34030.23454 | AJ26: 64994.95291 | AK26: 313830.5169 | AL26: 154463.262 | AM26: 9105.41 | AN26: 0 | AO26: 37141.48 | AP26: 0 | AQ26: 0 | AR26: 0 | AS26: 0 | AT26: 941.46 | AU26: 0 | AV26: 0 | AW26: 0 | AX26: 0 | AY26: 0 | AZ26: 0 | BA26: 0 | BB26: 0 | BC26: 0 | BD26: 0 | BE26: 0 | BF26: 0 | BG26: 0 | BH26: 0 | BI26: 0 | BJ26: 0 | BK26: 0 | BL26: 0 | BM26: 0 | BN26: 0 | BO26: 0 | BP26: 0 | BQ26: 0 | BR26: 0 | BS26: 0 | BT26: 0 | BU26: 0 | BV26: 0 | BW26: 0 | BX26: 0 | BY26: 0 | BZ26: 0 | CA26: 0 | CB26: 0 | CC26: 0 | CD26: 0 | CE26: 0 | CF26: 0 | CG26: 1036470.016
A27: 27 | F27: (1) | G27: סחיר | J27: 15248810.85 | K27: 393.0598855 | L27: 139446.6392 | M27: 4126982.559 | N27: 145963.0122 | O27: 3518765.59 | P27: 319227.1946 | Q27: 1127166.8 | R27: 230227.57 | S27: 248748.0355 | T27: 753100.4834 | U27: 544273.75 | V27: 172203.48 | W27: 298.77 | X27: 40153.94665 | Y27: 19671.80541 | Z27: 17975.0445 | AA27: 9318.02 | AB27: 0 | AC27: 523605.7673 | AD27: 413195.6055 | AE27: 488353.5971 | AF27: 465889.8531 | AG27: 286991.018 | AH27: 5881.912662 | AI27: 34030.23454 | AJ27: 64994.95291 | AK27: 313830.5169 | AL27: 154463.262 | AM27: 9105.41 | AN27: 0 | AO27: 37141.48 | AP27: 0 | AQ27: 0 | AR27: 0 | AS27: 0 | AT27: 941.46 | AU27: 0 | AV27: 0 | AW27: 0 | AX27: 0 | AY27: 0 | AZ27: 0 | BA27: 0 | BB27: 0 | BC27: 0 | BD27: 0 | BE27: 0 | BF27: 0 | BG27: 0 | BH27: 0 | BI27: 0 | BJ27: 0 | BK27: 0 | BL27: 0 | BM27: 0 | BN27: 0 | BO27: 0 | BP27: 0 | BQ27: 0 | BR27: 0 | BS27: 0 | BT27: 0 | BU27: 0 | BV27: 0 | BW27: 0 | BX27: 0 | BY27: 0 | BZ27: 0 | CA27: 0 | CB27: 0 | CC27: 0 | CD27: 0 | CE27: 0 | CF27: 0 | CG27: 1036470.016
A28: 28 | G28: (א) | H28: צמוד מדד | J28: 8331783.385 | K28: 206.7020468 | L28: 73332.09727 | M28: 2170294.588 | N28: 76758.92276 | O28: 2727938.1 | P28: 105792.2139 | Q28: 508539.07 | R28: 146684.73 | S28: 0 | T28: 0 | V28: 81324.83 | W28: 205.41 | X28: 0 | Y28: 6519.25613 | Z28: 0 | AC28: 477914.7859 | AD28: 266281.5403 | AE28: 308471.5665 | AF28: 263398.8583 | AG28: 145313.4587 | AH28: 5368.644132 | AI28: 21930.58965 | AJ28: 41054.46352 | AK28: 177429.4917 | AL28: 78210.08128 | CG28: 648813.985
A29: 29 | G29: (ג) | H29: לא צמוד בריבית קבועה | J29: 3909675.33 | K29: 132.3427272 | L29: 46951.49318 | M29: 1389549.397 | N29: 49145.54708 | O29: 563210.4 | P29: 166811.3581 | Q29: 467320.32 | R29: 71833.21 | S29: 10384.12199 | T29: 31421.80649 | U29: 30786.4 | V29: 66734.25 | W29: 48.63 | X29: 1675.353514 | Y29: 10279.45186 | Z29: 750.3780062 | AA29: 1234.21 | AC29: 35929.83309 | AD29: 115530.4846 | AE29: 163478.9903 | AF29: 163141.4493 | AG29: 101243.6506 | AH29: 403.6169068 | AI29: 9514.935385 | AJ29: 21757.40968 | AK29: 109894.5707 | AL29: 54490.98942 | AM29: 379.91 | AT29: 39.28 | CG29: 225601.5397
A30: 30 | G30: (ד) | H30: לא צמוד בריבית משתנה | J30: 556169.883 | K30: 21.41754818 | L30: 7598.34627 | M30: 224876.2875 | N30: 7953.41871 | O30: 91291.53 | P30: 30094.24588 | Q30: 58456.69 | R30: 7368.15 | S30: 0.9046296047 | T30: 0 | U30: 1578.09 | V30: 11895.92 | W30: 9.16 | X30: 0 | Y30: 1854.504124 | Z30: 0.06537039526 | AA30: 164.94 | AC30: 4094.435261 | AD30: 16481.08962 | AE30: 10585.25853 | AF30: 25413.79186 | AG30: 8520.530865 | AH30: 45.994739 | AI30: 1357.360383 | AJ30: 1408.791466 | AK30: 17119.11814 | AL30: 4585.889135 | CG30: 23393.95304
A31: 31 | G31: (ה) | H31: צמוד מט"ח | J31: 0 | K31: 0 | L31: 0 | M31: 0 | N31: 0 | P31: 0 | S31: 0 | T31: 0 | X31: 0 | Y31: 0 | Z31: 0 | AC31: 0 | AD31: 0 | AE31: 0 | AF31: 0 | AG31: 0 | AH31: 0 | AI31: 0 | AJ31: 0 | AK31: 0 | AL31: 0 | CG31: 0
A32: 32 | G32: (ו) | H32: מק"מ | J32: 2451182.248 | K32: 32.59756326 | L32: 11564.70251 | M32: 342262.2863 | N32: 12105.12367 | O32: 136325.56 | P32: 16529.3767 | Q32: 92850.72 | R32: 4341.48 | S32: 238363.0089 | T32: 721678.6769 | U32: 511909.26 | V32: 12248.48 | W32: 35.57 | X32: 38478.59314 | Y32: 1018.593301 | Z32: 17224.60112 | AA32: 7918.87 | AC32: 5666.713116 | AD32: 14902.49089 | AE32: 5817.781752 | AF32: 13935.75363 | AG32: 31913.37784 | AH32: 63.65688407 | AI32: 1227.349113 | AJ32: 774.2882479 | AK32: 9387.336374 | AL32: 17176.30216 | AM32: 8725.5 | AO32: 37141.48 | AT32: 902.18 | CG32: 138660.5378
A33: 33 | F33: (2) | G33: לא סחיר | J33: 112618.6224 | K33: 1068.75519 | L33: 111549.8672 | M33: 0 | N33: 0 | O33: 0 | P33: 0 | Q33: 0 | R33: 0 | S33: 0 | T33: 0 | U33: 0 | V33: 0 | W33: 0 | X33: 0 | Y33: 0 | Z33: 0 | AA33: 0 | AB33: 0 | AC33: 0 | AD33: 0 | AE33: 0 | AF33: 0 | AG33: 0 | AH33: 0 | AI33: 0 | AJ33: 0 | AK33: 0 | AL33: 0 | AM33: 0 | AN33: 0 | AO33: 0 | AP33: 0 | AQ33: 0 | AR33: 0 | AS33: 0 | AT33: 0 | AU33: 0 | AV33: 0 | AW33: 0 | AX33: 0 | AY33: 0 | AZ33: 0 | BA33: 0 | BB33: 0 | BC33: 0 | BD33: 0 | BE33: 0 | BF33: 0 | BG33: 0 | BH33: 0 | BI33: 0 | BJ33: 0 | BK33: 0 | BL33: 0 | BM33: 0 | BN33: 0 | BO33: 0 | BP33: 0 | BQ33: 0 | BR33: 0 | BS33: 0 | BT33: 0 | BU33: 0 | BV33: 0 | BW33: 0 | BX33: 0 | BY33: 0 | BZ33: 0 | CA33: 0 | CB33: 0 | CC33: 0 | CD33: 0 | CE33: 0 | CF33: 0 | CG33: 0
A34: 34 | G34: (א) | H34: אג"ח מיועדות - הסכמי "חץ" כולל אג"ח של חברת החשמל | J34: 112618.6224 | K34: 1068.75519 | L34: 111549.8672 | M34: 0 | N34: 0 | P34: 0 | S34: 0 | T34: 0 | X34: 0 | Y34: 0 | Z34: 0 | AC34: 0 | AD34: 0 | AE34: 0 | AF34: 0 | AG34: 0 | AH34: 0 | AI34: 0 | AJ34: 0 | AK34: 0 | AL34: 0 | CG34: 0
A35: 35 | G35: (ב) | H35: אג"ח לא סחירות אחרות | J35: 0 | K35: 0 | L35: 0 | M35: 0 | N35: 0 | P35: 0 | S35: 0 | T35: 0 | X35: 0 | Y35: 0 | Z35: 0 | AC35: 0 | AD35: 0 | AE35: 0 | AF35: 0 | AG35: 0 | AH35: 0 | AI35: 0 | AJ35: 0 | AK35: 0 | AL35: 0 | CG35: 0
A36: 36 | E36: ב) | F36: בחו"ל | J36: 213091.1671 | K36: 1.268565645 | L36: 450.051563 | M36: 13319.4673 | N36: 471.0825743 | O36: 13213.62 | P36: 1032.616833 | Q36: 5543.42 | R36: 1028.15 | S36: 0 | T36: 0 | U36: 116261.99 | V36: 0 | W36: 1375.3 | X36: 0 | Y36: 63.63316706 | Z36: 0 | AA36: 12826.57 | AB36: 0 | AC36: 1102.010591 | AD36: 1693.135626 | AE36: 1646.921332 | AF36: 1795.46044 | AG36: 1132.792526 | AH36: 12.37940919 | AI36: 139.4443738 | AJ36: 219.1886679 | AK36: 1209.44956 | AL36: 609.6874738 | AM36: 0 | AN36: 0 | AO36: 33906.85 | AP36: 0 | AQ36: 0 | AR36: 0 | AS36: 0 | AT36: 95.24 | AU36: 0 | AV36: 0 | AW36: 0 | AX36: 0 | AY36: 0 | AZ36: 0 | BA36: 0 | BB36: 0 | BC36: 0 | BD36: 0 | BE36: 0 | BF36: 0 | BG36: 0 | BH36: 0 | BI36: 0 | BJ36: 0 | BK36: 0 | BL36: 0 | BM36: 0 | BN36: 0 | BO36: 0 | BP36: 0 | BQ36: 0 | BR36: 0 | BS36: 0 | BT36: 0 | BU36: 0 | BV36: 0 | BW36: 0 | BX36: 0 | BY36: 0 | BZ36: 0 | CA36: 0 | CB36: 0 | CC36: 0 | CD36: 0 | CE36: 0 | CF36: 0 | CG36: 3941.437079
A37: 37 | F37: (1) | G37: סחיר | J37: 213091.1671 | K37: 1.268565645 | L37: 450.051563 | M37: 13319.4673 | N37: 471.0825743 | O37: 13213.62 | P37: 1032.616833 | Q37: 5543.42 | R37: 1028.15 | S37: 0 | T37: 0 | U37: 116261.99 | V37: 0 | W37: 1375.3 | X37: 0 | Y37: 63.63316706 | Z37: 0 | AA37: 12826.57 | AB37: 0 | AC37: 1102.010591 | AD37: 1693.135626 | AE37: 1646.921332 | AF37: 1795.46044 | AG37: 1132.792526 | AH37: 12.37940919 | AI37: 139.4443738 | AJ37: 219.1886679 | AK37: 1209.44956 | AL37: 609.6874738 | AM37: 0 | AN37: 0 | AO37: 33906.85 | AP37: 0 | AQ37: 0 | AR37: 0 | AS37: 0 | AT37: 95.24 | AU37: 0 | AV37: 0 | AW37: 0 | AX37: 0 | AY37: 0 | AZ37: 0 | BA37: 0 | BB37: 0 | BC37: 0 | BD37: 0 | BE37: 0 | BF37: 0 | BG37: 0 | BH37: 0 | BI37: 0 | BJ37: 0 | BK37: 0 | BL37: 0 | BM37: 0 | BN37: 0 | BO37: 0 | BP37: 0 | BQ37: 0 | BR37: 0 | BS37: 0 | BT37: 0 | BU37: 0 | BV37: 0 | BW37: 0 | BX37: 0 | BY37: 0 | BZ37: 0 | CA37: 0 | CB37: 0 | CC37: 0 | CD37: 0 | CE37: 0 | CF37: 0 | CG37: 3941.437079
A38: 38 | G38: (א) | H38: ממשלת ישראל שהונפקו בחו"ל | J38: 0 | K38: 0 | L38: 0 | M38: 0 | N38: 0 | P38: 0 | S38: 0 | T38: 0 | X38: 0 | Y38: 0 | Z38: 0 | AC38: 0 | AD38: 0 | AE38: 0 | AF38: 0 | AG38: 0 | AH38: 0 | AI38: 0 | AJ38: 0 | AK38: 0 | AL38: 0 | CG38: 0
A39: 39 | G39: (ב) | H39: שהנפיקה ממשלה זרה | J39: 213091.1671 | K39: 1.268565645 | L39: 450.051563 | M39: 13319.4673 | N39: 471.0825743 | O39: 13213.62 | P39: 1032.616833 | Q39: 5543.42 | R39: 1028.15 | S39: 0 | T39: 0 | U39: 116261.99 | W39: 1375.3 | X39: 0 | Y39: 63.63316706 | Z39: 0 | AA39: 12826.57 | AC39: 1102.010591 | AD39: 1693.135626 | AE39: 1646.921332 | AF39: 1795.46044 | AG39: 1132.792526 | AH39: 12.37940919 | AI39: 139.4443738 | AJ39: 219.1886679 | AK39: 1209.44956 | AL39: 609.6874738 | AO39: 33906.85 | AT39: 95.24 | CG39: 3941.437079
A40: 40 | F40: (2) | G40: לא סחיר | J40: 0 | K40: 0 | L40: 0 | M40: 0 | N40: 0 | O40: 0 | P40: 0 | Q40: 0 | R40: 0 | S40: 0 | T40: 0 | U40: 0 | V40: 0 | W40: 0 | X40: 0 | Y40: 0 | Z40: 0 | AA40: 0 | AB40: 0 | AC40: 0 | AD40: 0 | AE40: 0 | AF40: 0 | AG40: 0 | AH40: 0 | AI40: 0 | AJ40: 0 | AK40: 0 | AL40: 0 | AM40: 0 | AN40: 0 | AO40: 0 | AP40: 0 | AQ40: 0 | AR40: 0 | AS40: 0 | AT40: 0 | AU40: 0 | AV40: 0 | AW40: 0 | AX40: 0 | AY40: 0 | AZ40: 0 | BA40: 0 | BB40: 0 | BC40: 0 | BD40: 0 | BE40: 0 | BF40: 0 | BG40: 0 | BH40: 0 | BI40: 0 | BJ40: 0 | BK40: 0 | BL40: 0 | BM40: 0 | BN40: 0 | BO40: 0 | BP40: 0 | BQ40: 0 | BR40: 0 | BS40: 0 | BT40: 0 | BU40: 0 | BV40: 0 | BW40: 0 | BX40: 0 | BY40: 0 | BZ40: 0 | CA40: 0 | CB40: 0 | CC40: 0 | CD40: 0 | CE40: 0 | CF40: 0 | CG40: 0
A41: 41 | G41: (א) | H41: ממשלת ישראל שהונפקו בחו"ל | J41: 0 | K41: 0 | L41: 0 | M41: 0 | N41: 0 | P41: 0 | S41: 0 | T41: 0 | X41: 0 | Y41: 0 | Z41: 0 | AC41: 0 | AD41: 0 | AE41: 0 | AF41: 0 | AG41: 0 | AH41: 0 | AI41: 0 | AJ41: 0 | AK41: 0 | AL41: 0 | CG41: 0
A42: 42 | G42: (ב) | H42: שהנפיקה ממשלה זרה | J42: 0 | K42: 0 | L42: 0 | M42: 0 | N42: 0 | P42: 0 | S42: 0 | T42: 0 | X42: 0 | Y42: 0 | Z42: 0 | AC42: 0 | AD42: 0 | AE42: 0 | AF42: 0 | AG42: 0 | AH42: 0 | AI42: 0 | AJ42: 0 | AK42: 0 | AL42: 0 | CG42: 0
A43: 43 | AC43: 0 | AD43: 0 | AE43: 0 | AF43: 0 | AG43: 0 | AH43: 0 | AI43: 0 | AJ43: 0 | AK43: 0 | AL43: 0 | CG43: 0
A44: 44 | D44: (2 | E44: תעודות חוב מסחריות: | J44: 0 | K44: 0 | L44: 0 | M44: 0 | N44: 0 | O44: 0 | P44: 0 | Q44: 0 | R44: 0 | S44: 0 | T44: 0 | U44: 0 | V44: 0 | W44: 0 | X44: 0 | Y44: 0 | Z44: 0 | AA44: 0 | AB44: 0 | AC44: 0 | AD44: 0 | AE44: 0 | AF44: 0 | AG44: 0 | AH44: 0 | AI44: 0 | AJ44: 0 | AK44: 0 | AL44: 0 | AM44: 0 | AN44: 0 | AO44: 0 | AP44: 0 | AQ44: 0 | AR44: 0 | AS44: 0 | AT44: 0 | AU44: 0 | AV44: 0 | AW44: 0 | AX44: 0 | AY44: 0 | AZ44: 0 | BA44: 0 | BB44: 0 | BC44: 0 | BD44: 0 | BE44: 0 | BF44: 0 | BG44: 0 | BH44: 0 | BI44: 0 | BJ44: 0 | BK44: 0 | BL44: 0 | BM44: 0 | BN44: 0 | BO44: 0 | BP44: 0 | BQ44: 0 | BR44: 0 | BS44: 0 | BT44: 0 | BU44: 0 | BV44: 0 | BW44: 0 | BX44: 0 | BY44: 0 | BZ44: 0 | CA44: 0 | CB44: 0 | CC44: 0 | CD44: 0 | CE44: 0 | CF44: 0 | CG44: 0
A45: 45 | E45: א) | F45: בישראל | J45: 0 | K45: 0 | L45: 0 | M45: 0 | N45: 0 | O45: 0 | P45: 0 | Q45: 0 | R45: 0 | S45: 0 | T45: 0 | U45: 0 | V45: 0 | W45: 0 | X45: 0 | Y45: 0 | Z45: 0 | AA45: 0 | AB45: 0 | AC45: 0 | AD45: 0 | AE45: 0 | AF45: 0 | AG45: 0 | AH45: 0 | AI45: 0 | AJ45: 0 | AK45: 0 | AL45: 0 | AM45: 0 | AN45: 0 | AO45: 0 | AP45: 0 | AQ45: 0 | AR45: 0 | AS45: 0 | AT45: 0 | AU45: 0 | AV45: 0 | AW45: 0 | AX45: 0 | AY45: 0 | AZ45: 0 | BA45: 0 | BB45: 0 | BC45: 0 | BD45: 0 | BE45: 0 | BF45: 0 | BG45: 0 | BH45: 0 | BI45: 0 | BJ45: 0 | BK45: 0 | BL45: 0 | BM45: 0 | BN45: 0 | BO45: 0 | BP45: 0 | BQ45: 0 | BR45: 0 | BS45: 0 | BT45: 0 | BU45: 0 | BV45: 0 | BW45: 0 | BX45: 0 | BY45: 0 | BZ45: 0 | CA45: 0 | CB45: 0 | CC45: 0 | CD45: 0 | CE45: 0 | CF45: 0 | CG45: 0
A46: 46 | F46: (1) | G46: סחיר | J46: 0 | K46: 0 | L46: 0 | M46: 0 | N46: 0 | O46: 0 | P46: 0 | Q46: 0 | R46: 0 | S46: 0 | T46: 0 | U46: 0 | V46: 0 | W46: 0 | X46: 0 | Y46: 0 | Z46: 0 | AA46: 0 | AB46: 0 | AC46: 0 | AD46: 0 | AE46: 0 | AF46: 0 | AG46: 0 | AH46: 0 | AI46: 0 | AJ46: 0 | AK46: 0 | AL46: 0 | AM46: 0 | AN46: 0 | AO46: 0 | AP46: 0 | AQ46: 0 | AR46: 0 | AS46: 0 | AT46: 0 | AU46: 0 | AV46: 0 | AW46: 0 | AX46: 0 | AY46: 0 | AZ46: 0 | BA46: 0 | BB46: 0 | BC46: 0 | BD46: 0 | BE46: 0 | BF46: 0 | BG46: 0 | BH46: 0 | BI46: 0 | BJ46: 0 | BK46: 0 | BL46: 0 | BM46: 0 | BN46: 0 | BO46: 0 | BP46: 0 | BQ46: 0 | BR46: 0 | BS46: 0 | BT46: 0 | BU46: 0 | BV46: 0 | BW46: 0 | BX46: 0 | BY46: 0 | BZ46: 0 | CA46: 0 | CB46: 0 | CC46: 0 | CD46: 0 | CE46: 0 | CF46: 0 | CG46: 0
A47: 47 | G47: (א) | H47: דרוג AA- ומעלה | J47: 0 | K47: 0 | L47: 0 | M47: 0 | N47: 0 | O47: 0 | P47: 0 | Q47: 0 | R47: 0 | S47: 0 | T47: 0 | U47: 0 | V47: 0 | W47: 0 | X47: 0 | Y47: 0 | Z47: 0 | AA47: 0 | AB47: 0 | AC47: 0 | AD47: 0 | AE47: 0 | AF47: 0 | AG47: 0 | AH47: 0 | AI47: 0 | AJ47: 0 | AK47: 0 | AL47: 0 | AM47: 0 | AN47: 0 | AO47: 0 | AP47: 0 | AQ47: 0 | AR47: 0 | AS47: 0 | AT47: 0 | AU47: 0 | AV47: 0 | AW47: 0 | AX47: 0 | AY47: 0 | AZ47: 0 | BA47: 0 | BB47: 0 | BC47: 0 | BD47: 0 | BE47: 0 | BF47: 0 | BG47: 0 | BH47: 0 | BI47: 0 | BJ47: 0 | BK47: 0 | BL47: 0 | BM47: 0 | BN47: 0 | BO47: 0 | BP47: 0 | BQ47: 0 | BR47: 0 | BS47: 0 | BT47: 0 | BU47: 0 | BV47: 0 | BW47: 0 | BX47: 0 | BY47: 0 | BZ47: 0 | CA47: 0 | CB47: 0 | CC47: 0 | CD47: 0 | CE47: 0 | CF47: 0 | CG47: 0
A48: 48 | H48: a | I48: צמוד מדד | J48: 0 | K48: 0 | L48: 0 | M48: 0 | N48: 0 | P48: 0 | S48: 0 | T48: 0 | X48: 0 | Y48: 0 | Z48: 0 | AC48: 0 | AD48: 0 | AE48: 0 | AF48: 0 | AG48: 0 | AH48: 0 | AI48: 0 | AJ48: 0 | AK48: 0 | AL48: 0 | CG48: 0
A49: 49 | H49: b | I49: לא צמוד | J49: 0 | K49: 0 | L49: 0 | M49: 0 | N49: 0 | P49: 0 | S49: 0 | T49: 0 | X49: 0 | Y49: 0 | Z49: 0 | AC49: 0 | AD49: 0 | AE49: 0 | AF49: 0 | AG49: 0 | AH49: 0 | AI49: 0 | AJ49: 0 | AK49: 0 | AL49: 0 | CG49: 0
A50: 50 | H50: c | I50: צמוד מט"ח | J50: 0 | K50: 0 | L50: 0 | M50: 0 | N50: 0 | P50: 0 | S50: 0 | T50: 0 | X50: 0 | Y50: 0 | Z50: 0 | AC50: 0 | AD50: 0 | AE50: 0 | AF50: 0 | AG50: 0 | AH50: 0 | AI50: 0 | AJ50: 0 | AK50: 0 | AL50: 0 | CG50: 0
A51: 51 | G51: (ב) | H51: דרוג BBB- ועד A+ | J51: 0 | K51: 0 | L51: 0 | M51: 0 | N51: 0 | O51: 0 | P51: 0 | Q51: 0 | R51: 0 | S51: 0 | T51: 0 | U51: 0 | V51: 0 | W51: 0 | X51: 0 | Y51: 0 | Z51: 0 | AA51: 0 | AB51: 0 | AC51: 0 | AD51: 0 | AE51: 0 | AF51: 0 | AG51: 0 | AH51: 0 | AI51: 0 | AJ51: 0 | AK51: 0 | AL51: 0 | AM51: 0 | AN51: 0 | AO51: 0 | AP51: 0 | AQ51: 0 | AR51: 0 | AS51: 0 | AT51: 0 | AU51: 0 | AV51: 0 | AW51: 0 | AX51: 0 | AY51: 0 | AZ51: 0 | BA51: 0 | BB51: 0 | BC51: 0 | BD51: 0 | BE51: 0 | BF51: 0 | BG51: 0 | BH51: 0 | BI51: 0 | BJ51: 0 | BK51: 0 | BL51: 0 | BM51: 0 | BN51: 0 | BO51: 0 | BP51: 0 | BQ51: 0 | BR51: 0 | BS51: 0 | BT51: 0 | BU51: 0 | BV51: 0 | BW51: 0 | BX51: 0 | BY51: 0 | BZ51: 0 | CA51: 0 | CB51: 0 | CC51: 0 | CD51: 0 | CE51: 0 | CF51: 0 | CG51: 0
A52: 52 | H52: a | I52: צמוד מדד | J52: 0 | K52: 0 | L52: 0 | M52: 0 | N52: 0 | P52: 0 | S52: 0 | T52: 0 | X52: 0 | Y52: 0 | Z52: 0 | AC52: 0 | AD52: 0 | AE52: 0 | AF52: 0 | AG52: 0 | AH52: 0 | AI52: 0 | AJ52: 0 | AK52: 0 | AL52: 0 | CG52: 0
A53: 53 | H53: b | I53: לא צמוד | J53: 0 | K53: 0 | L53: 0 | M53: 0 | N53: 0 | P53: 0 | S53: 0 | T53: 0 | X53: 0 | Y53: 0 | Z53: 0 | AC53: 0 | AD53: 0 | AE53: 0 | AF53: 0 | AG53: 0 | AH53: 0 | AI53: 0 | AJ53: 0 | AK53: 0 | AL53: 0 | CG53: 0
A54: 54 | H54: c | I54: צמוד מט"ח | J54: 0 | K54: 0 | L54: 0 | M54: 0 | N54: 0 | P54: 0 | S54: 0 | T54: 0 | X54: 0 | Y54: 0 | Z54: 0 | AC54: 0 | AD54: 0 | AE54: 0 | AF54: 0 | AG54: 0 | AH54: 0 | AI54: 0 | AJ54: 0 | AK54: 0 | AL54: 0 | CG54: 0
A55: 55 | G55: (ג) | H55: דרוג נמוך מ- BBB- או לא מדורג | J55: 0 | K55: 0 | L55: 0 | M55: 0 | N55: 0 | O55: 0 | P55: 0 | Q55: 0 | R55: 0 | S55: 0 | T55: 0 | U55: 0 | V55: 0 | W55: 0 | X55: 0 | Y55: 0 | Z55: 0 | AA55: 0 | AB55: 0 | AC55: 0 | AD55: 0 | AE55: 0 | AF55: 0 | AG55: 0 | AH55: 0 | AI55: 0 | AJ55: 0 | AK55: 0 | AL55: 0 | AM55: 0 | AN55: 0 | AO55: 0 | AP55: 0 | AQ55: 0 | AR55: 0 | AS55: 0 | AT55: 0 | AU55: 0 | AV55: 0 | AW55: 0 | AX55: 0 | AY55: 0 | AZ55: 0 | BA55: 0 | BB55: 0 | BC55: 0 | BD55: 0 | BE55: 0 | BF55: 0 | BG55: 0 | BH55: 0 | BI55: 0 | BJ55: 0 | BK55: 0 | BL55: 0 | BM55: 0 | BN55: 0 | BO55: 0 | BP55: 0 | BQ55: 0 | BR55: 0 | BS55: 0 | BT55: 0 | BU55: 0 | BV55: 0 | BW55: 0 | BX55: 0 | BY55: 0 | BZ55: 0 | CA55: 0 | CB55: 0 | CC55: 0 | CD55: 0 | CE55: 0 | CF55: 0 | CG55: 0
A56: 56 | H56: a | I56: צמוד מדד | J56: 0 | K56: 0 | L56: 0 | M56: 0 | N56: 0 | P56: 0 | S56: 0 | T56: 0 | X56: 0 | Y56: 0 | Z56: 0 | AC56: 0 | AD56: 0 | AE56: 0 | AF56: 0 | AG56: 0 | AH56: 0 | AI56: 0 | AJ56: 0 | AK56: 0 | AL56: 0 | CG56: 0
A57: 57 | H57: b | I57: לא צמוד | J57: 0 | K57: 0 | L57: 0 | M57: 0 | N57: 0 | P57: 0 | S57: 0 | T57: 0 | X57: 0 | Y57: 0 | Z57: 0 | AC57: 0 | AD57: 0 | AE57: 0 | AF57: 0 | AG57: 0 | AH57: 0 | AI57: 0 | AJ57: 0 | AK57: 0 | AL57: 0 | CG57: 0
A58: 58 | H58: c | I58: צמוד מט"ח | J58: 0 | K58: 0 | L58: 0 | M58: 0 | N58: 0 | P58: 0 | S58: 0 | T58: 0 | X58: 0 | Y58: 0 | Z58: 0 | AC58: 0 | AD58: 0 | AE58: 0 | AF58: 0 | AG58: 0 | AH58: 0 | AI58: 0 | AJ58: 0 | AK58: 0 | AL58: 0 | CG58: 0
A59: 59 | F59: (2) | G59: לא סחיר | J59: 0 | K59: 0 | L59: 0 | M59: 0 | N59: 0 | O59: 0 | P59: 0 | Q59: 0 | R59: 0 | S59: 0 | T59: 0 | U59: 0 | V59: 0 | W59: 0 | X59: 0 | Y59: 0 | Z59: 0 | AA59: 0 | AB59: 0 | AC59: 0 | AD59: 0 | AE59: 0 | AF59: 0 | AG59: 0 | AH59: 0 | AI59: 0 | AJ59: 0 | AK59: 0 | AL59: 0 | AM59: 0 | AN59: 0 | AO59: 0 | AP59: 0 | AQ59: 0 | AR59: 0 | AS59: 0 | AT59: 0 | AU59: 0 | AV59: 0 | AW59: 0 | AX59: 0 | AY59: 0 | AZ59: 0 | BA59: 0 | BB59: 0 | BC59: 0 | BD59: 0 | BE59: 0 | BF59: 0 | BG59: 0 | BH59: 0 | BI59: 0 | BJ59: 0 | BK59: 0 | BL59: 0 | BM59: 0 | BN59: 0 | BO59: 0 | BP59: 0 | BQ59: 0 | BR59: 0 | BS59: 0 | BT59: 0 | BU59: 0 | BV59: 0 | BW59: 0 | BX59: 0 | BY59: 0 | BZ59: 0 | CA59: 0 | CB59: 0 | CC59: 0 | CD59: 0 | CE59: 0 | CF59: 0 | CG59: 0
A60: 60 | G60: (א) | H60: =$H$47 -> דרוג AA- ומעלה | J60: 0 | K60: 0 | L60: 0 | M60: 0 | N60: 0 | O60: 0 | P60: 0 | Q60: 0 | R60: 0 | S60: 0 | T60: 0 | U60: 0 | V60: 0 | W60: 0 | X60: 0 | Y60: 0 | Z60: 0 | AA60: 0 | AB60: 0 | AC60: 0 | AD60: 0 | AE60: 0 | AF60: 0 | AG60: 0 | AH60: 0 | AI60: 0 | AJ60: 0 | AK60: 0 | AL60: 0 | AM60: 0 | AN60: 0 | AO60: 0 | AP60: 0 | AQ60: 0 | AR60: 0 | AS60: 0 | AT60: 0 | AU60: 0 | AV60: 0 | AW60: 0 | AX60: 0 | AY60: 0 | AZ60: 0 | BA60: 0 | BB60: 0 | BC60: 0 | BD60: 0 | BE60: 0 | BF60: 0 | BG60: 0 | BH60: 0 | BI60: 0 | BJ60: 0 | BK60: 0 | BL60: 0 | BM60: 0 | BN60: 0 | BO60: 0 | BP60: 0 | BQ60: 0 | BR60: 0 | BS60: 0 | BT60: 0 | BU60: 0 | BV60: 0 | BW60: 0 | BX60: 0 | BY60: 0 | BZ60: 0 | CA60: 0 | CB60: 0 | CC60: 0 | CD60: 0 | CE60: 0 | CF60: 0 | CG60: 0
A61: 61 | H61: a | I61: צמוד מדד | J61: 0 | K61: 0 | L61: 0 | M61: 0 | N61: 0 | P61: 0 | S61: 0 | T61: 0 | X61: 0 | Y61: 0 | Z61: 0 | AC61: 0 | AD61: 0 | AE61: 0 | AF61: 0 | AG61: 0 | AH61: 0 | AI61: 0 | AJ61: 0 | AK61: 0 | AL61: 0 | CG61: 0
A62: 62 | H62: b | I62: לא צמוד | J62: 0 | K62: 0 | L62: 0 | M62: 0 | N62: 0 | P62: 0 | S62: 0 | T62: 0 | X62: 0 | Y62: 0 | Z62: 0 | AC62: 0 | AD62: 0 | AE62: 0 | AF62: 0 | AG62: 0 | AH62: 0 | AI62: 0 | AJ62: 0 | AK62: 0 | AL62: 0 | CG62: 0
A63: 63 | H63: c | I63: צמוד מט"ח | J63: 0 | K63: 0 | L63: 0 | M63: 0 | N63: 0 | P63: 0 | S63: 0 | T63: 0 | X63: 0 | Y63: 0 | Z63: 0 | AC63: 0 | AD63: 0 | AE63: 0 | AF63: 0 | AG63: 0 | AH63: 0 | AI63: 0 | AJ63: 0 | AK63: 0 | AL63: 0 | CG63: 0
A64: 64 | G64: (ב) | H64: =$H$51 -> דרוג BBB- ועד A+ | J64: 0 | K64: 0 | L64: 0 | M64: 0 | N64: 0 | O64: 0 | P64: 0 | Q64: 0 | R64: 0 | S64: 0 | T64: 0 | U64: 0 | V64: 0 | W64: 0 | X64: 0 | Y64: 0 | Z64: 0 | AA64: 0 | AB64: 0 | AC64: 0 | AD64: 0 | AE64: 0 | AF64: 0 | AG64: 0 | AH64: 0 | AI64: 0 | AJ64: 0 | AK64: 0 | AL64: 0 | AM64: 0 | AN64: 0 | AO64: 0 | AP64: 0 | AQ64: 0 | AR64: 0 | AS64: 0 | AT64: 0 | AU64: 0 | AV64: 0 | AW64: 0 | AX64: 0 | AY64: 0 | AZ64: 0 | BA64: 0 | BB64: 0 | BC64: 0 | BD64: 0 | BE64: 0 | BF64: 0 | BG64: 0 | BH64: 0 | BI64: 0 | BJ64: 0 | BK64: 0 | BL64: 0 | BM64: 0 | BN64: 0 | BO64: 0 | BP64: 0 | BQ64: 0 | BR64: 0 | BS64: 0 | BT64: 0 | BU64: 0 | BV64: 0 | BW64: 0 | BX64: 0 | BY64: 0 | BZ64: 0 | CA64: 0 | CB64: 0 | CC64: 0 | CD64: 0 | CE64: 0 | CF64: 0 | CG64: 0
A65: 65 | H65: a | I65: צמוד מדד | J65: 0 | K65: 0 | L65: 0 | M65: 0 | N65: 0 | P65: 0 | S65: 0 | T65: 0 | X65: 0 | Y65: 0 | Z65: 0 | AC65: 0 | AD65: 0 | AE65: 0 | AF65: 0 | AG65: 0 | AH65: 0 | AI65: 0 | AJ65: 0 | AK65: 0 | AL65: 0 | CG65: 0
A66: 66 | H66: b | I66: לא צמוד | J66: 0 | K66: 0 | L66: 0 | M66: 0 | N66: 0 | P66: 0 | S66: 0 | T66: 0 | X66: 0 | Y66: 0 | Z66: 0 | AC66: 0 | AD66: 0 | AE66: 0 | AF66: 0 | AG66: 0 | AH66: 0 | AI66: 0 | AJ66: 0 | AK66: 0 | AL66: 0 | CG66: 0
A67: 67 | H67: c | I67: צמוד מט"ח | J67: 0 | K67: 0 | L67: 0 | M67: 0 | N67: 0 | P67: 0 | S67: 0 | T67: 0 | X67: 0 | Y67: 0 | Z67: 0 | AC67: 0 | AD67: 0 | AE67: 0 | AF67: 0 | AG67: 0 | AH67: 0 | AI67: 0 | AJ67: 0 | AK67: 0 | AL67: 0 | CG67: 0
A68: 68 | G68: (ג) | H68: בדרוג נמוך מ- BBB- או לא מדורג עם בטוחה מספקת | J68: 0 | K68: 0 | L68: 0 | M68: 0 | N68: 0 | O68: 0 | P68: 0 | Q68: 0 | R68: 0 | S68: 0 | T68: 0 | U68: 0 | V68: 0 | W68: 0 | X68: 0 | Y68: 0 | Z68: 0 | AA68: 0 | AB68: 0 | AC68: 0 | AD68: 0 | AE68: 0 | AF68: 0 | AG68: 0 | AH68: 0 | AI68: 0 | AJ68: 0 | AK68: 0 | AL68: 0 | AM68: 0 | AN68: 0 | AO68: 0 | AP68: 0 | AQ68: 0 | AR68: 0 | AS68: 0 | AT68: 0 | AU68: 0 | AV68: 0 | AW68: 0 | AX68: 0 | AY68: 0 | AZ68: 0 | BA68: 0 | BB68: 0 | BC68: 0 | BD68: 0 | BE68: 0 | BF68: 0 | BG68: 0 | BH68: 0 | BI68: 0 | BJ68: 0 | BK68: 0 | BL68: 0 | BM68: 0 | BN68: 0 | BO68: 0 | BP68: 0 | BQ68: 0 | BR68: 0 | BS68: 0 | BT68: 0 | BU68: 0 | BV68: 0 | BW68: 0 | BX68: 0 | BY68: 0 | BZ68: 0 | CA68: 0 | CB68: 0 | CC68: 0 | CD68: 0 | CE68: 0 | CF68: 0 | CG68: 0
A69: 69 | H69: a | I69: צמוד מדד | J69: 0 | K69: 0 | L69: 0 | M69: 0 | N69: 0 | P69: 0 | S69: 0 | T69: 0 | X69: 0 | Y69: 0 | Z69: 0 | AC69: 0 | AD69: 0 | AE69: 0 | AF69: 0 | AG69: 0 | AH69: 0 | AI69: 0 | AJ69: 0 | AK69: 0 | AL69: 0 | CG69: 0
A70: 70 | H70: b | I70: לא צמוד | J70: 0 | K70: 0 | L70: 0 | M70: 0 | N70: 0 | P70: 0 | S70: 0 | T70: 0 | X70: 0 | Y70: 0 | Z70: 0 | AC70: 0 | AD70: 0 | AE70: 0 | AF70: 0 | AG70: 0 | AH70: 0 | AI70: 0 | AJ70: 0 | AK70: 0 | AL70: 0 | CG70: 0
A71: 71 | H71: c | I71: צמוד מט"ח | J71: 0 | K71: 0 | L71: 0 | M71: 0 | N71: 0 | P71: 0 | S71: 0 | T71: 0 | X71: 0 | Y71: 0 | Z71: 0 | AC71: 0 | AD71: 0 | AE71: 0 | AF71: 0 | AG71: 0 | AH71: 0 | AI71: 0 | AJ71: 0 | AK71: 0 | AL71: 0 | CG71: 0
A72: 72 | G72: (ד) | H72: =$H$55 -> דרוג נמוך מ- BBB- או לא מדורג | J72: 0 | K72: 0 | L72: 0 | M72: 0 | N72: 0 | O72: 0 | P72: 0 | Q72: 0 | R72: 0 | S72: 0 | T72: 0 | U72: 0 | V72: 0 | W72: 0 | X72: 0 | Y72: 0 | Z72: 0 | AA72: 0 | AB72: 0 | AC72: 0 | AD72: 0 | AE72: 0 | AF72: 0 | AG72: 0 | AH72: 0 | AI72: 0 | AJ72: 0 | AK72: 0 | AL72: 0 | AM72: 0 | AN72: 0 | AO72: 0 | AP72: 0 | AQ72: 0 | AR72: 0 | AS72: 0 | AT72: 0 | AU72: 0 | AV72: 0 | AW72: 0 | AX72: 0 | AY72: 0 | AZ72: 0 | BA72: 0 | BB72: 0 | BC72: 0 | BD72: 0 | BE72: 0 | BF72: 0 | BG72: 0 | BH72: 0 | BI72: 0 | BJ72: 0 | BK72: 0 | BL72: 0 | BM72: 0 | BN72: 0 | BO72: 0 | BP72: 0 | BQ72: 0 | BR72: 0 | BS72: 0 | BT72: 0 | BU72: 0 | BV72: 0 | BW72: 0 | BX72: 0 | BY72: 0 | BZ72: 0 | CA72: 0 | CB72: 0 | CC72: 0 | CD72: 0 | CE72: 0 | CF72: 0 | CG72: 0
A73: 73 | H73: a | I73: צמוד מדד | J73: 0 | K73: 0 | L73: 0 | M73: 0 | N73: 0 | P73: 0 | S73: 0 | T73: 0 | X73: 0 | Y73: 0 | Z73: 0 | AC73: 0 | AD73: 0 | AE73: 0 | AF73: 0 | AG73: 0 | AH73: 0 | AI73: 0 | AJ73: 0 | AK73: 0 | AL73: 0 | CG73: 0
A74: 74 | H74: b | I74: לא צמוד | J74: 0 | K74: 0 | L74: 0 | M74: 0 | N74: 0 | P74: 0 | S74: 0 | T74: 0 | X74: 0 | Y74: 0 | Z74: 0 | AC74: 0 | AD74: 0 | AE74: 0 | AF74: 0 | AG74: 0 | AH74: 0 | AI74: 0 | AJ74: 0 | AK74: 0 | AL74: 0 | CG74: 0
A75: =A74+1 -> 75 | H75: c | I75: צמוד מט"ח | J75: 0 | K75: 0 | L75: 0 | M75: 0 | N75: 0 | P75: 0 | S75: 0 | T75: 0 | X75: 0 | Y75: 0 | Z75: 0 | AC75: 0 | AD75: 0 | AE75: 0 | AF75: 0 | AG75: 0 | AH75: 0 | AI75: 0 | AJ75: 0 | AK75: 0 | AL75: 0 | CG75: 0
A76: 76 | E76: ב) | F76: בחו"ל | J76: 0 | K76: 0 | L76: 0 | M76: 0 | N76: 0 | O76: 0 | P76: 0 | Q76: 0 | R76: 0 | S76: 0 | T76: 0 | U76: 0 | V76: 0 | W76: 0 | X76: 0 | Y76: 0 | Z76: 0 | AA76: 0 | AB76: 0 | AC76: 0 | AD76: 0 | AE76: 0 | AF76: 0 | AG76: 0 | AH76: 0 | AI76: 0 | AJ76: 0 | AK76: 0 | AL76: 0 | AM76: 0 | AN76: 0 | AO76: 0 | AP76: 0 | AQ76: 0 | AR76: 0 | AS76: 0 | AT76: 0 | AU76: 0 | AV76: 0 | AW76: 0 | AX76: 0 | AY76: 0 | AZ76: 0 | BA76: 0 | BB76: 0 | BC76: 0 | BD76: 0 | BE76: 0 | BF76: 0 | BG76: 0 | BH76: 0 | BI76: 0 | BJ76: 0 | BK76: 0 | BL76: 0 | BM76: 0 | BN76: 0 | BO76: 0 | BP76: 0 | BQ76: 0 | BR76: 0 | BS76: 0 | BT76: 0 | BU76: 0 | BV76: 0 | BW76: 0 | BX76: 0 | BY76: 0 | BZ76: 0 | CA76: 0 | CB76: 0 | CC76: 0 | CD76: 0 | CE76: 0 | CF76: 0 | CG76: 0
A77: 77 | F77: (1) | G77: סחיר - חברות ישראליות | J77: 0 | K77: 0 | L77: 0 | M77: 0 | N77: 0 | O77: 0 | P77: 0 | Q77: 0 | R77: 0 | S77: 0 | T77: 0 | U77: 0 | V77: 0 | W77: 0 | X77: 0 | Y77: 0 | Z77: 0 | AA77: 0 | AB77: 0 | AC77: 0 | AD77: 0 | AE77: 0 | AF77: 0 | AG77: 0 | AH77: 0 | AI77: 0 | AJ77: 0 | AK77: 0 | AL77: 0 | AM77: 0 | AN77: 0 | AO77: 0 | AP77: 0 | AQ77: 0 | AR77: 0 | AS77: 0 | AT77: 0 | AU77: 0 | AV77: 0 | AW77: 0 | AX77: 0 | AY77: 0 | AZ77: 0 | BA77: 0 | BB77: 0 | BC77: 0 | BD77: 0 | BE77: 0 | BF77: 0 | BG77: 0 | BH77: 0 | BI77: 0 | BJ77: 0 | BK77: 0 | BL77: 0 | BM77: 0 | BN77: 0 | BO77: 0 | BP77: 0 | BQ77: 0 | BR77: 0 | BS77: 0 | BT77: 0 | BU77: 0 | BV77: 0 | BW77: 0 | BX77: 0 | BY77: 0 | BZ77: 0 | CA77: 0 | CB77: 0 | CC77: 0 | CD77: 0 | CE77: 0 | CF77: 0 | CG77: 0
A78: 78 | G78: (א) | H78: דרוג A- ומעלה | J78: 0 | K78: 0 | L78: 0 | M78: 0 | N78: 0 | P78: 0 | S78: 0 | T78: 0 | X78: 0 | Y78: 0 | Z78: 0 | AC78: 0 | AD78: 0 | AE78: 0 | AF78: 0 | AG78: 0 | AH78: 0 | AI78: 0 | AJ78: 0 | AK78: 0 | AL78: 0 | CG78: 0
A79: 79 | G79: (ב) | H79: דרוג BBB- ועד BBB+ | J79: 0 | K79: 0 | L79: 0 | M79: 0 | N79: 0 | P79: 0 | S79: 0 | T79: 0 | X79: 0 | Y79: 0 | Z79: 0 | AC79: 0 | AD79: 0 | AE79: 0 | AF79: 0 | AG79: 0 | AH79: 0 | AI79: 0 | AJ79: 0 | AK79: 0 | AL79: 0 | CG79: 0
A80: 80 | G80: (ג) | H80: דרוג נמוך מ- BBB- או לא מדורג | J80: 0 | K80: 0 | L80: 0 | M80: 0 | N80: 0 | P80: 0 | S80: 0 | T80: 0 | X80: 0 | Y80: 0 | Z80: 0 | AC80: 0 | AD80: 0 | AE80: 0 | AF80: 0 | AG80: 0 | AH80: 0 | AI80: 0 | AJ80: 0 | AK80: 0 | AL80: 0 | CG80: 0
A81: 81 | F81: (2) | G81: לא סחיר - חברות ישראליות | J81: 0 | K81: 0 | L81: 0 | M81: 0 | N81: 0 | O81: 0 | P81: 0 | Q81: 0 | R81: 0 | S81: 0 | T81: 0 | U81: 0 | V81: 0 | W81: 0 | X81: 0 | Y81: 0 | Z81: 0 | AA81: 0 | AB81: 0 | AC81: 0 | AD81: 0 | AE81: 0 | AF81: 0 | AG81: 0 | AH81: 0 | AI81: 0 | AJ81: 0 | AK81: 0 | AL81: 0 | AM81: 0 | AN81: 0 | AO81: 0 | AP81: 0 | AQ81: 0 | AR81: 0 | AS81: 0 | AT81: 0 | AU81: 0 | AV81: 0 | AW81: 0 | AX81: 0 | AY81: 0 | AZ81: 0 | BA81: 0 | BB81: 0 | BC81: 0 | BD81: 0 | BE81: 0 | BF81: 0 | BG81: 0 | BH81: 0 | BI81: 0 | BJ81: 0 | BK81: 0 | BL81: 0 | BM81: 0 | BN81: 0 | BO81: 0 | BP81: 0 | BQ81: 0 | BR81: 0 | BS81: 0 | BT81: 0 | BU81: 0 | BV81: 0 | BW81: 0 | BX81: 0 | BY81: 0 | BZ81: 0 | CA81: 0 | CB81: 0 | CC81: 0 | CD81: 0 | CE81: 0 | CF81: 0 | CG81: 0
A82: 82 | G82: (א) | H82: =$H$78 -> דרוג A- ומעלה | J82: 0 | K82: 0 | L82: 0 | M82: 0 | N82: 0 | P82: 0 | S82: 0 | T82: 0 | X82: 0 | Y82: 0 | Z82: 0 | AC82: 0 | AD82: 0 | AE82: 0 | AF82: 0 | AG82: 0 | AH82: 0 | AI82: 0 | AJ82: 0 | AK82: 0 | AL82: 0 | CG82: 0
A83: 83 | G83: (ב) | H83: =$H$79 -> דרוג BBB- ועד BBB+ | J83: 0 | K83: 0 | L83: 0 | M83: 0 | N83: 0 | P83: 0 | S83: 0 | T83: 0 | X83: 0 | Y83: 0 | Z83: 0 | AC83: 0 | AD83: 0 | AE83: 0 | AF83: 0 | AG83: 0 | AH83: 0 | AI83: 0 | AJ83: 0 | AK83: 0 | AL83: 0 | CG83: 0
A84: 84 | G84: (ג) | H84: =$H$68 -> בדרוג נמוך מ- BBB- או לא מדורג עם בטוחה מספקת | J84: 0 | K84: 0 | L84: 0 | M84: 0 | N84: 0 | P84: 0 | S84: 0 | T84: 0 | X84: 0 | Y84: 0 | Z84: 0 | AC84: 0 | AD84: 0 | AE84: 0 | AF84: 0 | AG84: 0 | AH84: 0 | AI84: 0 | AJ84: 0 | AK84: 0 | AL84: 0 | CG84: 0
A85: 85 | G85: (ד) | H85: =H80 -> דרוג נמוך מ- BBB- או לא מדורג | J85: 0 | K85: 0 | L85: 0 | M85: 0 | N85: 0 | P85: 0 | S85: 0 | T85: 0 | X85: 0 | Y85: 0 | Z85: 0 | AC85: 0 | AD85: 0 | AE85: 0 | AF85: 0 | AG85: 0 | AH85: 0 | AI85: 0 | AJ85: 0 | AK85: 0 | AL85: 0 | CG85: 0
A86: 86 | F86: (3) | G86: סחיר - חברות זרות | J86: 0 | K86: 0 | L86: 0 | M86: 0 | N86: 0 | O86: 0 | P86: 0 | Q86: 0 | R86: 0 | S86: 0 | T86: 0 | U86: 0 | V86: 0 | W86: 0 | X86: 0 | Y86: 0 | Z86: 0 | AA86: 0 | AB86: 0 | AC86: 0 | AD86: 0 | AE86: 0 | AF86: 0 | AG86: 0 | AH86: 0 | AI86: 0 | AJ86: 0 | AK86: 0 | AL86: 0 | AM86: 0 | AN86: 0 | AO86: 0 | AP86: 0 | AQ86: 0 | AR86: 0 | AS86: 0 | AT86: 0 | AU86: 0 | AV86: 0 | AW86: 0 | AX86: 0 | AY86: 0 | AZ86: 0 | BA86: 0 | BB86: 0 | BC86: 0 | BD86: 0 | BE86: 0 | BF86: 0 | BG86: 0 | BH86: 0 | BI86: 0 | BJ86: 0 | BK86: 0 | BL86: 0 | BM86: 0 | BN86: 0 | BO86: 0 | BP86: 0 | BQ86: 0 | BR86: 0 | BS86: 0 | BT86: 0 | BU86: 0 | BV86: 0 | BW86: 0 | BX86: 0 | BY86: 0 | BZ86: 0 | CA86: 0 | CB86: 0 | CC86: 0 | CD86: 0 | CE86: 0 | CF86: 0 | CG86: 0
A87: 87 | G87: (א) | H87: =$H$78 -> דרוג A- ומעלה | J87: 0 | K87: 0 | L87: 0 | M87: 0 | N87: 0 | P87: 0 | S87: 0 | T87: 0 | X87: 0 | Y87: 0 | Z87: 0 | AC87: 0 | AD87: 0 | AE87: 0 | AF87: 0 | AG87: 0 | AH87: 0 | AI87: 0 | AJ87: 0 | AK87: 0 | AL87: 0 | CG87: 0
A88: 88 | G88: (ב) | H88: =$H$79 -> דרוג BBB- ועד BBB+ | J88: 0 | K88: 0 | L88: 0 | M88: 0 | N88: 0 | P88: 0 | S88: 0 | T88: 0 | X88: 0 | Y88: 0 | Z88: 0 | AC88: 0 | AD88: 0 | AE88: 0 | AF88: 0 | AG88: 0 | AH88: 0 | AI88: 0 | AJ88: 0 | AK88: 0 | AL88: 0 | CG88: 0
A89: 89 | G89: (ג) | H89: =$H$80 -> דרוג נמוך מ- BBB- או לא מדורג | J89: 0 | K89: 0 | L89: 0 | M89: 0 | N89: 0 | P89: 0 | S89: 0 | T89: 0 | X89: 0 | Y89: 0 | Z89: 0 | AC89: 0 | AD89: 0 | AE89: 0 | AF89: 0 | AG89: 0 | AH89: 0 | AI89: 0 | AJ89: 0 | AK89: 0 | AL89: 0 | CG89: 0
A90: 90 | F90: (4) | G90: לא סחיר - חברות זרות | J90: 0 | K90: 0 | L90: 0 | M90: 0 | N90: 0 | O90: 0 | P90: 0 | Q90: 0 | R90: 0 | S90: 0 | T90: 0 | U90: 0 | V90: 0 | W90: 0 | X90: 0 | Y90: 0 | Z90: 0 | AA90: 0 | AB90: 0 | AC90: 0 | AD90: 0 | AE90: 0 | AF90: 0 | AG90: 0 | AH90: 0 | AI90: 0 | AJ90: 0 | AK90: 0 | AL90: 0 | AM90: 0 | AN90: 0 | AO90: 0 | AP90: 0 | AQ90: 0 | AR90: 0 | AS90: 0 | AT90: 0 | AU90: 0 | AV90: 0 | AW90: 0 | AX90: 0 | AY90: 0 | AZ90: 0 | BA90: 0 | BB90: 0 | BC90: 0 | BD90: 0 | BE90: 0 | BF90: 0 | BG90: 0 | BH90: 0 | BI90: 0 | BJ90: 0 | BK90: 0 | BL90: 0 | BM90: 0 | BN90: 0 | BO90: 0 | BP90: 0 | BQ90: 0 | BR90: 0 | BS90: 0 | BT90: 0 | BU90: 0 | BV90: 0 | BW90: 0 | BX90: 0 | BY90: 0 | BZ90: 0 | CA90: 0 | CB90: 0 | CC90: 0 | CD90: 0 | CE90: 0 | CF90: 0 | CG90: 0
A91: 91 | G91: (א) | H91: =$H$78 -> דרוג A- ומעלה | J91: 0 | K91: 0 | L91: 0 | M91: 0 | N91: 0 | P91: 0 | S91: 0 | T91: 0 | X91: 0 | Y91: 0 | Z91: 0 | AC91: 0 | AD91: 0 | AE91: 0 | AF91: 0 | AG91: 0 | AH91: 0 | AI91: 0 | AJ91: 0 | AK91: 0 | AL91: 0 | CG91: 0
A92: 92 | G92: (ב) | H92: =$H$79 -> דרוג BBB- ועד BBB+ | J92: 0 | K92: 0 | L92: 0 | M92: 0 | N92: 0 | P92: 0 | S92: 0 | T92: 0 | X92: 0 | Y92: 0 | Z92: 0 | AC92: 0 | AD92: 0 | AE92: 0 | AF92: 0 | AG92: 0 | AH92: 0 | AI92: 0 | AJ92: 0 | AK92: 0 | AL92: 0 | CG92: 0
A93: 93 | G93: (ג) | H93: =$H$68 -> בדרוג נמוך מ- BBB- או לא מדורג עם בטוחה מספקת | J93: 0 | K93: 0 | L93: 0 | M93: 0 | N93: 0 | P93: 0 | S93: 0 | T93: 0 | X93: 0 | Y93: 0 | Z93: 0 | AC93: 0 | AD93: 0 | AE93: 0 | AF93: 0 | AG93: 0 | AH93: 0 | AI93: 0 | AJ93: 0 | AK93: 0 | AL93: 0 | CG93: 0
A94: 94 | G94: (ד) | H94: =H89 -> דרוג נמוך מ- BBB- או לא מדורג | J94: 0 | K94: 0 | L94: 0 | M94: 0 | N94: 0 | P94: 0 | S94: 0 | T94: 0 | X94: 0 | Y94: 0 | Z94: 0 | AC94: 0 | AD94: 0 | AE94: 0 | AF94: 0 | AG94: 0 | AH94: 0 | AI94: 0 | AJ94: 0 | AK94: 0 | AL94: 0 | CG94: 0
A95: 95 | AC95: 0 | AD95: 0 | AE95: 0 | AF95: 0 | AG95: 0 | AH95: 0 | AI95: 0 | AJ95: 0 | AK95: 0 | AL95: 0 | CG95: 0
A96: 96 | D96: (3 | E96: אג"ח קונצרני: | J96: 8762869.463 | K96: 185.111144 | L96: 65672.24961 | M96: 1943598.141 | N96: 68741.12869 | O96: 1910488.98 | P96: 194884.369 | Q96: 1129694.65 | R96: 281427.26 | S96: 7.479514876 | T96: 1707.708113 | U96: 698992.98 | V96: 0 | W96: 201184.06 | X96: 91.05188745 | Y96: 12009.40098 | Z96: 0.5404851237 | AA96: 50956.9 | AB96: 0 | AC96: 169551.6556 | AD96: 214693.3448 | AE96: 297347.9835 | AF96: 346865.9805 | AG96: 214720.7102 | AH96: 1904.654403 | AI96: 17681.85523 | AJ96: 39574.02649 | AK96: 233654.2195 | AL96: 115566.1998 | AM96: 0 | AN96: 0 | AO96: 0 | AP96: 0 | AQ96: 0 | AR96: 0 | AS96: 0 | AT96: 3191.91 | AU96: 0 | AV96: 0 | AW96: 0 | AX96: 0 | AY96: 0 | AZ96: 0 | BA96: 0 | BB96: 0 | BC96: 0 | BD96: 0 | BE96: 0 | BF96: 0 | BG96: 0 | BH96: 0 | BI96: 0 | BJ96: 0 | BK96: 0 | BL96: 0 | BM96: 0 | BN96: 0 | BO96: 0 | BP96: 0 | BQ96: 0 | BR96: 0 | BS96: 0 | BT96: 0 | BU96: 0 | BV96: 0 | BW96: 0 | BX96: 0 | BY96: 0 | BZ96: 0 | CA96: 0 | CB96: 0 | CC96: 0 | CD96: 0 | CE96: 0 | CF96: 0 | CG96: 548474.9131
A97: 97 | E97: א) | F97: בישראל | J97: 6001762.194 | K97: 134.0053703 | L97: 47541.35241 | M97: 1407006.532 | N97: 49762.97056 | O97: 1376738.61 | P97: 151713.3744 | Q97: 901117.84 | R97: 237848.96 | S97: 7.451536641 | T97: 1707.708113 | U97: 277.15 | V97: 0 | W97: 151131.18 | X97: 91.05188745 | Y97: 9349.065588 | Z97: 0.5384633589 | AA97: 61.9 | AB97: 0 | AC97: 125005.919 | AD97: 151562.2471 | AE97: 231891.953 | AF97: 274835.8178 | AG97: 168860.1397 | AH97: 1404.250954 | AI97: 12482.4629 | AJ97: 30862.48704 | AK97: 185133.6022 | AL97: 90883.29029 | AM97: 0 | AN97: 0 | AO97: 0 | AP97: 0 | AQ97: 0 | AR97: 0 | AS97: 0 | AT97: 0 | AU97: 0 | AV97: 0 | AW97: 0 | AX97: 0 | AY97: 0 | AZ97: 0 | BA97: 0 | BB97: 0 | BC97: 0 | BD97: 0 | BE97: 0 | BF97: 0 | BG97: 0 | BH97: 0 | BI97: 0 | BJ97: 0 | BK97: 0 | BL97: 0 | BM97: 0 | BN97: 0 | BO97: 0 | BP97: 0 | BQ97: 0 | BR97: 0 | BS97: 0 | BT97: 0 | BU97: 0 | BV97: 0 | BW97: 0 | BX97: 0 | BY97: 0 | BZ97: 0 | CA97: 0 | CB97: 0 | CC97: 0 | CD97: 0 | CE97: 0 | CF97: 0 | CG97: 394350.3336
A98: 98 | F98: (1) | G98: סחיר | J98: 5617222.316 | K98: 114.9960747 | L98: 40797.38668 | M98: 1207415.999 | N98: 42703.85779 | O98: 1297401.92 | P98: 146193.8078 | Q98: 897315.14 | R98: 237707.32 | S98: 7.451536641 | T98: 1707.708113 | U98: 277.15 | V98: 0 | W98: 147441.55 | X98: 91.05188745 | Y98: 9008.932162 | Z98: 0.5384633589 | AA98: 49.09 | AB98: 0 | AC98: 118643.3824 | AD98: 144303.7566 | AE98: 221458.6506 | AF98: 260196.4257 | AG98: 163818.4627 | AH98: 1332.777553 | AI98: 11884.66338 | AJ98: 29473.91942 | AK98: 175272.2843 | AL98: 88169.77725 | AM98: 0 | AN98: 0 | AO98: 0 | AP98: 0 | AQ98: 0 | AR98: 0 | AS98: 0 | AT98: 0 | AU98: 0 | AV98: 0 | AW98: 0 | AX98: 0 | AY98: 0 | AZ98: 0 | BA98: 0 | BB98: 0 | BC98: 0 | BD98: 0 | BE98: 0 | BF98: 0 | BG98: 0 | BH98: 0 | BI98: 0 | BJ98: 0 | BK98: 0 | BL98: 0 | BM98: 0 | BN98: 0 | BO98: 0 | BP98: 0 | BQ98: 0 | BR98: 0 | BS98: 0 | BT98: 0 | BU98: 0 | BV98: 0 | BW98: 0 | BX98: 0 | BY98: 0 | BZ98: 0 | CA98: 0 | CB98: 0 | CC98: 0 | CD98: 0 | CE98: 0 | CF98: 0 | CG98: 374434.3159
A99: 99 | G99: (א) | H99: =$H$47 -> דרוג AA- ומעלה | J99: 4207519.824 | K99: 85.1260041 | L99: 30200.32219 | M99: 893791.3717 | N99: 31611.59008 | O99: 991578.05 | P99: 107434.8588 | Q99: 682066.83 | R99: 178970.16 | S99: 1.529476858 | T99: 815.1952723 | U99: 277.01 | V99: 0 | W99: 92281.69 | X99: 43.46472774 | Y99: 6620.481189 | Z99: 0.1105231425 | AA99: 49.08 | AB99: 0 | AC99: 86324.82221 | AD99: 107146.5631 | AE99: 162527.1683 | AF99: 194260.9014 | AG99: 121064.5228 | AH99: 969.7277923 | AI99: 8824.446883 | AJ99: 21630.73173 | AK99: 130857.1086 | AL99: 65158.90719 | AM99: 0 | AN99: 0 | AO99: 0 | AP99: 0 | AQ99: 0 | AR99: 0 | AS99: 0 | AT99: 0 | AU99: 0 | AV99: 0 | AW99: 0 | AX99: 0 | AY99: 0 | AZ99: 0 | BA99: 0 | BB99: 0 | BC99: 0 | BD99: 0 | BE99: 0 | BF99: 0 | BG99: 0 | BH99: 0 | BI99: 0 | BJ99: 0 | BK99: 0 | BL99: 0 | BM99: 0 | BN99: 0 | BO99: 0 | BP99: 0 | BQ99: 0 | BR99: 0 | BS99: 0 | BT99: 0 | BU99: 0 | BV99: 0 | BW99: 0 | BX99: 0 | BY99: 0 | BZ99: 0 | CA99: 0 | CB99: 0 | CC99: 0 | CD99: 0 | CE99: 0 | CF99: 0 | CG99: 292928.0542
A100: 100 | H100: a | I100: צמוד מדד | J100: 3765999.436 | K100: 77.65440313 | L100: 27549.60742 | M100: 815342.3414 | N100: 28837.00681 | O100: 907002.22 | P100: 91787.04724 | Q100: 606578.02 | R100: 155549.02 | S100: 0.7740645072 | T100: 0 | U100: 0.93 | W100: 71019.81 | X100: 0 | Y100: 5656.212764 | Z100: 0.05593549285 | AA100: 0.07 | AC100: 75975.3725 | AD100: 93988.00433 | AE100: 140355.4421 | AF100: 172896.1166 | AG100: 104750.5695 | AH100: 853.4675005 | AI100: 7740.725672 | AJ100: 18679.89793 | AK100: 116465.4634 | AL100: 56378.47054 | CG100: 268515.1358
A101: 101 | H101: b | I101: לא צמוד | J101: 405344.3542 | K101: 6.731341355 | L101: 2388.091393 | M101: 70676.57982 | N101: 2499.687444 | O101: 75929.61 | P101: 14772.83071 | Q101: 69706.46 | R101: 21938.33 | S101: 0.746086272 | T101: 815.1952723 | W101: 20584.87 | X101: 43.46472774 | Y101: 910.3492934 | Z101: 0.05391372805 | AC101: 9625.195599 | AD101: 12262.59885 | AE101: 20833.75651 | AF101: 19716.61032 | AG101: 15315.39422 | AH101: 108.1244008 | AI101: 1009.931154 | AJ101: 2772.763488 | AK101: 13281.40968 | AL101: 8242.995779 | CG101: 21902.57419
A102: 102 | H102: c | I102: צמוד מט"ח | J102: 36176.03429 | K102: 0.740259614 | L102: 262.6233792 | M102: 7772.450532 | N102: 274.8958291 | O102: 8646.22 | P102: 874.9808676 | Q102: 5782.35 | R102: 1482.81 | S102: 0.009326078399 | T102: 0 | U102: 276.08 | W102: 677.01 | X102: 0 | Y102: 53.91913239 | Z102: 0.0006739216006 | AA102: 49.01 | AC102: 724.2541091 | AD102: 895.9599436 | AE102: 1337.969689 | AF102: 1648.174498 | AG102: 998.5591343 | AH102: 8.135890932 | AI102: 73.79005636 | AJ102: 178.070311 | AK102: 1110.235502 | AL102: 537.4408657 | CG102: 2510.344295
A103: 103 | H103: d | I103: אחר | J103: 0 | K103: 0 | L103: 0 | M103: 0 | N103: 0 | P103: 0 | S103: 0 | T103: 0 | X103: 0 | Y103: 0 | Z103: 0 | AC103: 0 | AD103: 0 | AE103: 0 | AF103: 0 | AG103: 0 | AH103: 0 | AI103: 0 | AJ103: 0 | AK103: 0 | AL103: 0 | CG103: 0
A104: 104 | G104: (ב) | H104: =$H$51 -> דרוג BBB- ועד A+ | J104: 1359531.412 | K104: 28.53080503 | L104: 10121.93059 | M104: 299562.8379 | N104: 10594.93069 | O104: 295177.38 | P104: 37622.39701 | Q104: 209210.8 | R104: 57308.04 | S104: 5.287886452 | T104: 892.5128403 | U104: 0.14 | V104: 0 | W104: 52353.36 | X104: 47.5871597 | Y104: 2318.412985 | Z104: 0.3821135475 | AA104: 0.01 | AB104: 0 | AC104: 31024.07184 | AD104: 35929.76302 | AE104: 57016.06509 | AF104: 63591.32963 | AG104: 41445.28138 | AH104: 348.5081571 | AI104: 2959.126976 | AJ104: 7588.264912 | AK104: 42836.09037 | AL104: 22306.52862 | AM104: 0 | AN104: 0 | AO104: 0 | AP104: 0 | AQ104: 0 | AR104: 0 | AS104: 0 | AT104: 0 | AU104: 0 | AV104: 0 | AW104: 0 | AX104: 0 | AY104: 0 | AZ104: 0 | BA104: 0 | BB104: 0 | BC104: 0 | BD104: 0 | BE104: 0 | BF104: 0 | BG104: 0 | BH104: 0 | BI104: 0 | BJ104: 0 | BK104: 0 | BL104: 0 | BM104: 0 | BN104: 0 | BO104: 0 | BP104: 0 | BQ104: 0 | BR104: 0 | BS104: 0 | BT104: 0 | BU104: 0 | BV104: 0 | BW104: 0 | BX104: 0 | BY104: 0 | BZ104: 0 | CA104: 0 | CB104: 0 | CC104: 0 | CD104: 0 | CE104: 0 | CF104: 0 | CG104: 79241.8417
A105: 105 | H105: a | I105: צמוד מדד | J105: 680999.4546 | K105: 15.29336381 | L105: 5425.657171 | M105: 160574.6301 | N105: 5679.199358 | O105: 158334.79 | P105: 16263.43489 | Q105: 101493.18 | R105: 25542.78 | S105: 2.685910579 | T105: 0 | U105: 0.12 | W105: 20410.58 | X105: 0 | Y105: 1002.205112 | Z105: 0.194089421 | AA105: 0.01 | AC105: 14898.42886 | AD105: 16911.83408 | AE105: 25589.85732 | AF105: 31460.59975 | AG105: 18607.44085 | AH105: 167.3611385 | AI105: 1392.835918 | AJ105: 3405.752679 | AK105: 21192.34025 | AL105: 10014.82915 | CG105: 42613.41455
A106: 106 | H106: b | I106: לא צמוד | J106: 595663.0721 | K106: 11.52634414 | L106: 4089.224092 | M106: 121022.3251 | N106: 4280.314459 | O106: 116857.01 | P106: 19336.45548 | Q106: 94351.81 | R106: 28337.77 | S106: 2.583323717 | T106: 892.5128403 | W106: 30377.88 | X106: 47.5871597 | Y106: 1191.574515 | Z106: 0.1866762834 | AC106: 14451.53899 | AD106: 16946.92411 | AE106: 28333.50536 | AF106: 28321.00124 | AG106: 20529.68669 | AH106: 162.341012 | AI106: 1395.725885 | AJ106: 3770.904643 | AK106: 19077.45876 | AL106: 11049.41331 | CG106: 30825.81209
A107: 107 | H107: c | I107: צמוד מט"ח | J107: 82868.88506 | K107: 1.711097078 | L107: 607.049322 | M107: 17965.88271 | N107: 635.4168742 | O107: 19985.58 | P107: 2022.506642 | Q107: 13365.81 | R107: 3427.49 | S107: 0.0186521568 | T107: 0 | U107: 0.02 | W107: 1564.9 | X107: 0 | Y107: 124.6333576 | Z107: 0.001347843201 | AA107: 0 | AC107: 1674.103993 | AD107: 2071.004827 | AE107: 3092.702409 | AF107: 3809.728635 | AG107: 2308.153836 | AH107: 18.80600652 | AI107: 170.5651731 | AJ107: 411.6075906 | AK107: 2566.291365 | AL107: 1242.286164 | CG107: 5802.615063
A108: 108 | H108: d | I108: אחר | J108: 0 | K108: 0 | L108: 0 | M108: 0 | N108: 0 | P108: 0 | S108: 0 | T108: 0 | X108: 0 | Y108: 0 | Z108: 0 | AC108: 0 | AD108: 0 | AE108: 0 | AF108: 0 | AG108: 0 | AH108: 0 | AI108: 0 | AJ108: 0 | AK108: 0 | AL108: 0 | CG108: 0
A109: 109 | G109: (ג) | H109: =$H$55 -> דרוג נמוך מ- BBB- או לא מדורג | J109: 50171.08 | K109: 1.339265532 | L109: 475.1339031 | M109: 14061.78981 | N109: 497.3370179 | O109: 10646.49 | P109: 1136.552013 | Q109: 6037.51 | R109: 1429.12 | S109: 0.6341733312 | T109: 0 | U109: 0 | V109: 0 | W109: 2806.5 | X109: 0 | Y109: 70.03798681 | Z109: 0.04582666884 | AA109: 0 | AB109: 0 | AC109: 1294.488396 | AD109: 1227.430476 | AE109: 1915.417228 | AF109: 2344.194679 | AG109: 1308.658553 | AH109: 14.54160394 | AI109: 101.0895238 | AJ109: 254.9227717 | AK109: 1579.085321 | AL109: 704.3414471 | AM109: 0 | AN109: 0 | AO109: 0 | AP109: 0 | AQ109: 0 | AR109: 0 | AS109: 0 | AT109: 0 | AU109: 0 | AV109: 0 | AW109: 0 | AX109: 0 | AY109: 0 | AZ109: 0 | BA109: 0 | BB109: 0 | BC109: 0 | BD109: 0 | BE109: 0 | BF109: 0 | BG109: 0 | BH109: 0 | BI109: 0 | BJ109: 0 | BK109: 0 | BL109: 0 | BM109: 0 | BN109: 0 | BO109: 0 | BP109: 0 | BQ109: 0 | BR109: 0 | BS109: 0 | BT109: 0 | BU109: 0 | BV109: 0 | BW109: 0 | BX109: 0 | BY109: 0 | BZ109: 0 | CA109: 0 | CB109: 0 | CC109: 0 | CD109: 0 | CE109: 0 | CF109: 0 | CG109: 2264.42
A110: 110 | H110: a | I110: צמוד מדד | J110: 28148.93 | K110: 0.7514070961 | L110: 266.5781936 | M110: 7889.494946 | N110: 279.0354529 | O110: 5973.31 | P110: 637.6744514 | Q110: 3387.4 | R110: 801.82 | S110: 0.3543909792 | T110: 0 | W110: 1574.61 | X110: 0 | Y110: 39.29554855 | Z110: 0.02560902082 | AC110: 726.2813363 | AD110: 688.6626685 | AE110: 1074.663142 | AF110: 1315.230594 | AG110: 734.2335103 | AH110: 8.15866374 | AI110: 56.71733149 | AJ110: 143.0268575 | AK110: 885.9594056 | AL110: 395.1764897 | CG110: 1270.47
A111: 111 | H111: b | I111: לא צמוד | J111: 22022.15 | K111: 0.5878584363 | L111: 208.5557095 | M111: 6172.294867 | N111: 218.301565 | O111: 4673.18 | P111: 498.8775617 | Q111: 2650.11 | R111: 627.3 | S111: 0.279782352 | T111: 0 | W111: 1231.89 | X111: 0 | Y111: 30.74243825 | Z111: 0.02021764802 | AC111: 568.2070598 | AD111: 538.7678077 | AE111: 840.7540858 | AF111: 1028.964085 | AG111: 574.4250426 | AH111: 6.382940197 | AI111: 44.37219228 | AJ111: 111.8959142 | AK111: 693.125915 | AL111: 309.1649574 | CG111: 993.95
A112: 112 | H112: c | I112: צמוד מט"ח | J112: 0 | K112: 0 | L112: 0 | M112: 0 | N112: 0 | P112: 0 | S112: 0 | T112: 0 | X112: 0 | Y112: 0 | Z112: 0 | AC112: 0 | AD112: 0 | AE112: 0 | AF112: 0 | AG112: 0 | AH112: 0 | AI112: 0 | AJ112: 0 | AK112: 0 | AL112: 0 | CG112: 0
A113: 113 | H113: d | I113: אחר | J113: 0 | K113: 0 | L113: 0 | M113: 0 | N113: 0 | P113: 0 | S113: 0 | T113: 0 | X113: 0 | Y113: 0 | Z113: 0 | AC113: 0 | AD113: 0 | AE113: 0 | AF113: 0 | AG113: 0 | AH113: 0 | AI113: 0 | AJ113: 0 | AK113: 0 | AL113: 0 | CG113: 0
A114: 114 | F114: (2) | G114: לא סחיר | J114: 384539.8777 | K114: 19.00929568 | L114: 6743.965729 | M114: 199590.5322 | N114: 7059.112773 | O114: 79336.69 | P114: 5519.566573 | Q114: 3802.7 | R114: 141.64 | S114: 0 | T114: 0 | U114: 0 | V114: 0 | W114: 3689.63 | X114: 0 | Y114: 340.1334267 | Z114: 0 | AA114: 12.81 | AB114: 0 | AC114: 6362.5366 | AD114: 7258.490483 | AE114: 10433.30237 | AF114: 14639.39205 | AG114: 5041.676961 | AH114: 71.47340026 | AI114: 597.7995173 | AJ114: 1388.567629 | AK114: 9861.317954 | AL114: 2713.513039 | AM114: 0 | AN114: 0 | AO114: 0 | AP114: 0 | AQ114: 0 | AR114: 0 | AS114: 0 | AT114: 0 | AU114: 0 | AV114: 0 | AW114: 0 | AX114: 0 | AY114: 0 | AZ114: 0 | BA114: 0 | BB114: 0 | BC114: 0 | BD114: 0 | BE114: 0 | BF114: 0 | BG114: 0 | BH114: 0 | BI114: 0 | BJ114: 0 | BK114: 0 | BL114: 0 | BM114: 0 | BN114: 0 | BO114: 0 | BP114: 0 | BQ114: 0 | BR114: 0 | BS114: 0 | BT114: 0 | BU114: 0 | BV114: 0 | BW114: 0 | BX114: 0 | BY114: 0 | BZ114: 0 | CA114: 0 | CB114: 0 | CC114: 0 | CD114: 0 | CE114: 0 | CF114: 0 | CG114: 19916.01767
A115: 115 | G115: (א) | H115: =$H$47 -> דרוג AA- ומעלה | J115: 373813.8436 | K115: 18.81302518 | L115: 6674.33445 | M115: 197529.7649 | N115: 6986.227609 | O115: 77165.96 | P115: 5516.919683 | Q115: 3794.42 | R115: 137.51 | S115: 0 | T115: 0 | U115: 0 | V115: 0 | W115: 3494.05 | X115: 0 | Y115: 339.9703168 | Z115: 0 | AA115: 12.81 | AB115: 0 | AC115: 5891.478223 | AD115: 6669.249572 | AE115: 9396.464999 | AF115: 13412.01318 | AG115: 4614.467879 | AH115: 66.18177743 | AI115: 549.2704281 | AJ115: 1250.575001 | AK115: 9034.536817 | AL115: 2483.582121 | AM115: 0 | AN115: 0 | AO115: 0 | AP115: 0 | AQ115: 0 | AR115: 0 | AS115: 0 | AT115: 0 | AU115: 0 | AV115: 0 | AW115: 0 | AX115: 0 | AY115: 0 | AZ115: 0 | BA115: 0 | BB115: 0 | BC115: 0 | BD115: 0 | BE115: 0 | BF115: 0 | BG115: 0 | BH115: 0 | BI115: 0 | BJ115: 0 | BK115: 0 | BL115: 0 | BM115: 0 | BN115: 0 | BO115: 0 | BP115: 0 | BQ115: 0 | BR115: 0 | BS115: 0 | BT115: 0 | BU115: 0 | BV115: 0 | BW115: 0 | BX115: 0 | BY115: 0 | BZ115: 0 | CA115: 0 | CB115: 0 | CC115: 0 | CD115: 0 | CE115: 0 | CF115: 0 | CG115: 18775.2436
A116: 116 | H116: a | I116: צמוד מדד | J116: 347758.4249 | K116: 18.25202402 | L116: 6475.306952 | M116: 191639.4615 | N116: 6777.89951 | O116: 71066.07 | P116: 5372.565266 | Q116: 3039.78 | R116: 54.37 | S116: 0 | T116: 0 | W116: 3126.54 | X116: 0 | Y116: 331.0747338 | Z116: 0 | AC116: 4836.509192 | AD116: 5528.777332 | AE116: 7385.186007 | AF116: 11059.97919 | AG116: 3691.444283 | AH116: 54.33080846 | AI116: 455.3426678 | AJ116: 982.8939925 | AK116: 7450.170813 | AL116: 1986.795717 | CG116: 16425.67489
A117: 117 | H117: b | I117: לא צמוד | J117: 18550.85542 | K117: 0.3394535219 | L117: 120.4286027 | M117: 3564.135685 | N117: 126.0562586 | O117: 3754.32 | P117: 4.577895378 | Q117: 14.32 | R117: 7.14 | S117: 0 | T117: 0 | W117: 338.25 | X117: 0 | Y117: 0.282104622 | Z117: 0 | AC117: 814.6981086 | AD117: 1019.098424 | AE117: 1793.229223 | AF117: 2122.769835 | AG117: 738.868749 | AH117: 9.151891403 | AI117: 83.93157605 | AJ117: 238.660777 | AK117: 1429.930165 | AL117: 397.671251 | CG117: 1972.995417
A118: 118 | H118: c | I118: צמוד מט"ח | J118: 7504.563294 | K118: 0.2215476328 | L118: 78.59889541 | M118: 2326.167717 | N118: 82.27183957 | O118: 2345.57 | P118: 139.7765216 | Q118: 740.32 | R118: 76 | S118: 0 | T118: 0 | W118: 29.26 | X118: 0 | Y118: 8.613478367 | Z118: 0 | AA118: 12.81 | AC118: 240.2709224 | AD118: 121.3738157 | AE118: 218.0497685 | AF118: 229.2641612 | AG118: 184.1548476 | AH118: 2.699077568 | AI118: 9.996184279 | AJ118: 29.02023149 | AK118: 154.4358388 | AL118: 99.11515237 | CG118: 376.5732943
A119: 119 | H119: d | I119: אחר | J119: 0 | K119: 0 | L119: 0 | M119: 0 | N119: 0 | P119: 0 | S119: 0 | T119: 0 | X119: 0 | Y119: 0 | Z119: 0 | AC119: 0 | AD119: 0 | AE119: 0 | AF119: 0 | AG119: 0 | AH119: 0 | AI119: 0 | AJ119: 0 | AK119: 0 | AL119: 0 | CG119: 0
A120: 120 | G120: (ב) | H120: =$H$51 -> דרוג BBB- ועד A+ | J120: 10726.03407 | K120: 0.1962705057 | L120: 69.63127862 | M120: 2060.767287 | N120: 72.88516402 | O120: 2170.73 | P120: 2.646890126 | Q120: 8.28 | R120: 4.13 | S120: 0 | T120: 0 | U120: 0 | V120: 0 | W120: 195.58 | X120: 0 | Y120: 0.1631098741 | Z120: 0 | AA120: 0 | AB120: 0 | AC120: 471.0583772 | AD120: 589.2409108 | AE120: 1036.837372 | AF120: 1227.378862 | AG120: 427.2090817 | AH120: 5.291622832 | AI120: 48.5290892 | AJ120: 137.9926278 | AK120: 826.7811377 | AL120: 229.9309183 | AM120: 0 | AN120: 0 | AO120: 0 | AP120: 0 | AQ120: 0 | AR120: 0 | AS120: 0 | AT120: 0 | AU120: 0 | AV120: 0 | AW120: 0 | AX120: 0 | AY120: 0 | AZ120: 0 | BA120: 0 | BB120: 0 | BC120: 0 | BD120: 0 | BE120: 0 | BF120: 0 | BG120: 0 | BH120: 0 | BI120: 0 | BJ120: 0 | BK120: 0 | BL120: 0 | BM120: 0 | BN120: 0 | BO120: 0 | BP120: 0 | BQ120: 0 | BR120: 0 | BS120: 0 | BT120: 0 | BU120: 0 | BV120: 0 | BW120: 0 | BX120: 0 | BY120: 0 | BZ120: 0 | CA120: 0 | CB120: 0 | CC120: 0 | CD120: 0 | CE120: 0 | CF120: 0 | CG120: 1140.774073
A121: 121 | H121: a | I121: צמוד מדד | J121: 0 | K121: 0 | L121: 0 | M121: 0 | N121: 0 | P121: 0 | S121: 0 | T121: 0 | X121: 0 | Y121: 0 | Z121: 0 | AC121: 0 | AD121: 0 | AE121: 0 | AF121: 0 | AG121: 0 | AH121: 0 | AI121: 0 | AJ121: 0 | AK121: 0 | AL121: 0 | CG121: 0
A122: 122 | H122: b | I122: לא צמוד | J122: 10726.03407 | K122: 0.1962705057 | L122: 69.63127862 | M122: 2060.767287 | N122: 72.88516402 | O122: 2170.73 | P122: 2.646890126 | Q122: 8.28 | R122: 4.13 | S122: 0 | T122: 0 | W122: 195.58 | X122: 0 | Y122: 0.1631098741 | Z122: 0 | AC122: 471.0583772 | AD122: 589.2409108 | AE122: 1036.837372 | AF122: 1227.378862 | AG122: 427.2090817 | AH122: 5.291622832 | AI122: 48.5290892 | AJ122: 137.9926278 | AK122: 826.7811377 | AL122: 229.9309183 | CG122: 1140.774073
A123: 123 | H123: c | I123: צמוד מט"ח | J123: 0 | K123: 0 | L123: 0 | M123: 0 | N123: 0 | P123: 0 | S123: 0 | T123: 0 | X123: 0 | Y123: 0 | Z123: 0 | AC123: 0 | AD123: 0 | AE123: 0 | AF123: 0 | AG123: 0 | AH123: 0 | AI123: 0 | AJ123: 0 | AK123: 0 | AL123: 0 | CG123: 0
A124: 124 | H124: d | I124: אחר | J124: 0 | K124: 0 | L124: 0 | M124: 0 | N124: 0 | P124: 0 | S124: 0 | T124: 0 | X124: 0 | Y124: 0 | Z124: 0 | AC124: 0 | AD124: 0 | AE124: 0 | AF124: 0 | AG124: 0 | AH124: 0 | AI124: 0 | AJ124: 0 | AK124: 0 | AL124: 0 | CG124: 0
A125: 125 | G125: (ג) | H125: =$H$68 -> בדרוג נמוך מ- BBB- או לא מדורג עם בטוחה מספקת | J125: 0 | K125: 0 | L125: 0 | M125: 0 | N125: 0 | O125: 0 | P125: 0 | Q125: 0 | R125: 0 | S125: 0 | T125: 0 | U125: 0 | V125: 0 | W125: 0 | X125: 0 | Y125: 0 | Z125: 0 | AA125: 0 | AB125: 0 | AC125: 0 | AD125: 0 | AE125: 0 | AF125: 0 | AG125: 0 | AH125: 0 | AI125: 0 | AJ125: 0 | AK125: 0 | AL125: 0 | AM125: 0 | AN125: 0 | AO125: 0 | AP125: 0 | AQ125: 0 | AR125: 0 | AS125: 0 | AT125: 0 | AU125: 0 | AV125: 0 | AW125: 0 | AX125: 0 | AY125: 0 | AZ125: 0 | BA125: 0 | BB125: 0 | BC125: 0 | BD125: 0 | BE125: 0 | BF125: 0 | BG125: 0 | BH125: 0 | BI125: 0 | BJ125: 0 | BK125: 0 | BL125: 0 | BM125: 0 | BN125: 0 | BO125: 0 | BP125: 0 | BQ125: 0 | BR125: 0 | BS125: 0 | BT125: 0 | BU125: 0 | BV125: 0 | BW125: 0 | BX125: 0 | BY125: 0 | BZ125: 0 | CA125: 0 | CB125: 0 | CC125: 0 | CD125: 0 | CE125: 0 | CF125: 0 | CG125: 0
A126: 126 | H126: a | I126: צמוד מדד | J126: 0 | K126: 0 | L126: 0 | M126: 0 | N126: 0 | P126: 0 | S126: 0 | T126: 0 | X126: 0 | Y126: 0 | Z126: 0 | AC126: 0 | AD126: 0 | AE126: 0 | AF126: 0 | AG126: 0 | AH126: 0 | AI126: 0 | AJ126: 0 | AK126: 0 | AL126: 0 | CG126: 0
A127: 127 | H127: b | I127: לא צמוד | J127: 0 | K127: 0 | L127: 0 | M127: 0 | N127: 0 | P127: 0 | S127: 0 | T127: 0 | X127: 0 | Y127: 0 | Z127: 0 | AC127: 0 | AD127: 0 | AE127: 0 | AF127: 0 | AG127: 0 | AH127: 0 | AI127: 0 | AJ127: 0 | AK127: 0 | AL127: 0 | CG127: 0
A128: 128 | H128: c | I128: צמוד מט"ח | J128: 0 | K128: 0 | L128: 0 | M128: 0 | N128: 0 | P128: 0 | S128: 0 | T128: 0 | X128: 0 | Y128: 0 | Z128: 0 | AC128: 0 | AD128: 0 | AE128: 0 | AF128: 0 | AG128: 0 | AH128: 0 | AI128: 0 | AJ128: 0 | AK128: 0 | AL128: 0 | CG128: 0
A129: 129 | H129: d | I129: אחר | J129: 0 | K129: 0 | L129: 0 | M129: 0 | N129: 0 | P129: 0 | S129: 0 | T129: 0 | X129: 0 | Y129: 0 | Z129: 0 | AC129: 0 | AD129: 0 | AE129: 0 | AF129: 0 | AG129: 0 | AH129: 0 | AI129: 0 | AJ129: 0 | AK129: 0 | AL129: 0 | CG129: 0
A130: 130 | G130: (ד) | H130: =$H$55 -> דרוג נמוך מ- BBB- או לא מדורג | J130: 0 | K130: 0 | L130: 0 | M130: 0 | N130: 0 | O130: 0 | P130: 0 | Q130: 0 | R130: 0 | S130: 0 | T130: 0 | U130: 0 | V130: 0 | W130: 0 | X130: 0 | Y130: 0 | Z130: 0 | AA130: 0 | AB130: 0 | AC130: 0 | AD130: 0 | AE130: 0 | AF130: 0 | AG130: 0 | AH130: 0 | AI130: 0 | AJ130: 0 | AK130: 0 | AL130: 0 | AM130: 0 | AN130: 0 | AO130: 0 | AP130: 0 | AQ130: 0 | AR130: 0 | AS130: 0 | AT130: 0 | AU130: 0 | AV130: 0 | AW130: 0 | AX130: 0 | AY130: 0 | AZ130: 0 | BA130: 0 | BB130: 0 | BC130: 0 | BD130: 0 | BE130: 0 | BF130: 0 | BG130: 0 | BH130: 0 | BI130: 0 | BJ130: 0 | BK130: 0 | BL130: 0 | BM130: 0 | BN130: 0 | BO130: 0 | BP130: 0 | BQ130: 0 | BR130: 0 | BS130: 0 | BT130: 0 | BU130: 0 | BV130: 0 | BW130: 0 | BX130: 0 | BY130: 0 | BZ130: 0 | CA130: 0 | CB130: 0 | CC130: 0 | CD130: 0 | CE130: 0 | CF130: 0 | CG130: 0
A131: 131 | H131: a | I131: צמוד מדד | J131: 0 | K131: 0 | L131: 0 | M131: 0 | N131: 0 | O131: 0 | P131: 0 | Q131: 0 | R131: 0 | S131: 0 | T131: 0 | W131: 0 | X131: 0 | Y131: 0 | Z131: 0 | AC131: 0 | AD131: 0 | AE131: 0 | AF131: 0 | AG131: 0 | AH131: 0 | AI131: 0 | AJ131: 0 | AK131: 0 | AL131: 0 | CG131: 0
A132: 132 | H132: b | I132: לא צמוד | J132: 0 | K132: 0 | L132: 0 | M132: 0 | N132: 0 | P132: 0 | S132: 0 | T132: 0 | X132: 0 | Y132: 0 | Z132: 0 | AC132: 0 | AD132: 0 | AE132: 0 | AF132: 0 | AG132: 0 | AH132: 0 | AI132: 0 | AJ132: 0 | AK132: 0 | AL132: 0 | CG132: 0
A133: 133 | H133: c | I133: צמוד מט"ח | J133: 0 | K133: 0 | L133: 0 | M133: 0 | N133: 0 | P133: 0 | S133: 0 | T133: 0 | X133: 0 | Y133: 0 | Z133: 0 | AC133: 0 | AD133: 0 | AE133: 0 | AF133: 0 | AG133: 0 | AH133: 0 | AI133: 0 | AJ133: 0 | AK133: 0 | AL133: 0 | CG133: 0
A134: 134 | H134: d | I134: אחר | J134: 0 | K134: 0 | L134: 0 | M134: 0 | N134: 0 | P134: 0 | S134: 0 | T134: 0 | X134: 0 | Y134: 0 | Z134: 0 | AC134: 0 | AD134: 0 | AE134: 0 | AF134: 0 | AG134: 0 | AH134: 0 | AI134: 0 | AJ134: 0 | AK134: 0 | AL134: 0 | CG134: 0
A135: 135 | E135: ב) | F135: בחו"ל | J135: 2761107.269 | K135: 51.10577361 | L135: 18130.8972 | M135: 536591.6089 | N135: 18978.15812 | O135: 533750.37 | P135: 43170.9946 | Q135: 228576.81 | R135: 43578.3 | S135: 0.0279782352 | T135: 0 | U135: 698715.83 | V135: 0 | W135: 50052.88 | X135: 0 | Y135: 2660.335396 | Z135: 0.002021764802 | AA135: 50895 | AB135: 0 | AC135: 44545.73655 | AD135: 63131.09767 | AE135: 65456.03056 | AF135: 72030.16279 | AG135: 45860.57052 | AH135: 500.4034489 | AI135: 5199.392326 | AJ135: 8711.539444 | AK135: 48520.61721 | AL135: 24682.90948 | AM135: 0 | AN135: 0 | AO135: 0 | AP135: 0 | AQ135: 0 | AR135: 0 | AS135: 0 | AT135: 3191.91 | AU135: 0 | AV135: 0 | AW135: 0 | AX135: 0 | AY135: 0 | AZ135: 0 | BA135: 0 | BB135: 0 | BC135: 0 | BD135: 0 | BE135: 0 | BF135: 0 | BG135: 0 | BH135: 0 | BI135: 0 | BJ135: 0 | BK135: 0 | BL135: 0 | BM135: 0 | BN135: 0 | BO135: 0 | BP135: 0 | BQ135: 0 | BR135: 0 | BS135: 0 | BT135: 0 | BU135: 0 | BV135: 0 | BW135: 0 | BX135: 0 | BY135: 0 | BZ135: 0 | CA135: 0 | CB135: 0 | CC135: 0 | CD135: 0 | CE135: 0 | CF135: 0 | CG135: 154124.5794
A136: 136 | F136: (1) | G136: סחיר - חברות ישראליות | J136: 207762.8071 | K136: 4.888872336 | L136: 1734.434986 | M136: 51331.34062 | N136: 1815.485525 | O136: 51713.42 | P136: 6227.953495 | Q136: 30422.36 | R136: 7850.55 | S136: 0.0279782352 | T136: 0 | U136: 279.88 | V136: 0 | W136: 3471.29 | X136: 0 | Y136: 383.7865049 | Z136: 0.002021764802 | AA136: 92.51 | AB136: 0 | AC136: 3597.952488 | AD136: 4358.472098 | AE136: 6617.082818 | AF136: 8025.68564 | AG136: 4818.788941 | AH136: 40.41751183 | AI136: 358.9579021 | AJ136: 880.667182 | AK136: 5406.22436 | AL136: 2593.551059 | AM136: 0 | AN136: 0 | AO136: 0 | AP136: 0 | AQ136: 0 | AR136: 0 | AS136: 0 | AT136: 0 | AU136: 0 | AV136: 0 | AW136: 0 | AX136: 0 | AY136: 0 | AZ136: 0 | BA136: 0 | BB136: 0 | BC136: 0 | BD136: 0 | BE136: 0 | BF136: 0 | BG136: 0 | BH136: 0 | BI136: 0 | BJ136: 0 | BK136: 0 | BL136: 0 | BM136: 0 | BN136: 0 | BO136: 0 | BP136: 0 | BQ136: 0 | BR136: 0 | BS136: 0 | BT136: 0 | BU136: 0 | BV136: 0 | BW136: 0 | BX136: 0 | BY136: 0 | BZ136: 0 | CA136: 0 | CB136: 0 | CC136: 0 | CD136: 0 | CE136: 0 | CF136: 0 | CG136: 15737.07711
A137: 137 | G137: (א) | H137: =$H$78 -> דרוג A- ומעלה | J137: 0 | K137: 0 | L137: 0 | M137: 0 | N137: 0 | P137: 0 | S137: 0 | T137: 0 | X137: 0 | Y137: 0 | Z137: 0 | AC137: 0 | AD137: 0 | AE137: 0 | AF137: 0 | AG137: 0 | AH137: 0 | AI137: 0 | AJ137: 0 | AK137: 0 | AL137: 0 | CG137: 0
A138: 138 | G138: (ב) | H138: =$H$79 -> דרוג BBB- ועד BBB+ | J138: 98274.31858 | K138: 2.628127344 | L138: 932.3859776 | M138: 27594.35931 | N138: 975.9565852 | O138: 25307.95 | P138: 3555.762491 | Q138: 12763.11 | R138: 3322.07 | S138: 0.009326078399 | T138: 0 | U138: 279.85 | W138: 1403.7 | X138: 0 | Y138: 219.1175094 | Z138: 0.0006739216006 | AA138: 92.51 | AC138: 1386.089398 | AD138: 1622.207196 | AE138: 2530.928824 | AF138: 2992.175146 | AG138: 1769.198446 | AH138: 15.57060157 | AI138: 133.6028037 | AJ138: 336.8411756 | AK138: 2015.574854 | AL138: 952.2115537 | CG138: 8070.508584
A139: =A138+1 -> 139 | G139: (ג) | H139: =$H$80 -> דרוג נמוך מ- BBB- או לא מדורג | J139: 109488.4885 | K139: 2.260744993 | L139: 802.0490084 | M139: 23736.98131 | N139: 839.52894 | O139: 26405.47 | P139: 2672.191005 | Q139: 17659.25 | R139: 4528.48 | S139: 0.0186521568 | T139: 0 | U139: 0.03 | W139: 2067.59 | X139: 0 | Y139: 164.6689955 | Z139: 0.001347843201 | AA139: 0 | AC139: 2211.86309 | AD139: 2736.264902 | AE139: 4086.153994 | AF139: 5033.510494 | AG139: 3049.590495 | AH139: 24.84691026 | AI139: 225.3550985 | AJ139: 543.8260064 | AK139: 3390.649506 | AL139: 1641.339505 | CG139: 7666.568523
A140: 140 | F140: (2) | G140: לא סחיר - חברות ישראליות | J140: 0 | K140: 0 | L140: 0 | M140: 0 | N140: 0 | O140: 0 | P140: 0 | Q140: 0 | R140: 0 | S140: 0 | T140: 0 | U140: 0 | V140: 0 | W140: 0 | X140: 0 | Y140: 0 | Z140: 0 | AA140: 0 | AB140: 0 | AC140: 0 | AD140: 0 | AE140: 0 | AF140: 0 | AG140: 0 | AH140: 0 | AI140: 0 | AJ140: 0 | AK140: 0 | AL140: 0 | AM140: 0 | AN140: 0 | AO140: 0 | AP140: 0 | AQ140: 0 | AR140: 0 | AS140: 0 | AT140: 0 | AU140: 0 | AV140: 0 | AW140: 0 | AX140: 0 | AY140: 0 | AZ140: 0 | BA140: 0 | BB140: 0 | BC140: 0 | BD140: 0 | BE140: 0 | BF140: 0 | BG140: 0 | BH140: 0 | BI140: 0 | BJ140: 0 | BK140: 0 | BL140: 0 | BM140: 0 | BN140: 0 | BO140: 0 | BP140: 0 | BQ140: 0 | BR140: 0 | BS140: 0 | BT140: 0 | BU140: 0 | BV140: 0 | BW140: 0 | BX140: 0 | BY140: 0 | BZ140: 0 | CA140: 0 | CB140: 0 | CC140: 0 | CD140: 0 | CE140: 0 | CF140: 0 | CG140: 0
A141: 141 | G141: (א) | H141: =$H$78 -> דרוג A- ומעלה | J141: 0 | K141: 0 | L141: 0 | M141: 0 | N141: 0 | P141: 0 | S141: 0 | T141: 0 | X141: 0 | Y141: 0 | Z141: 0 | AC141: 0 | AD141: 0 | AE141: 0 | AF141: 0 | AG141: 0 | AH141: 0 | AI141: 0 | AJ141: 0 | AK141: 0 | AL141: 0 | CG141: 0
A142: 142 | G142: (ב) | H142: =$H$79 -> דרוג BBB- ועד BBB+ | J142: 0 | K142: 0 | L142: 0 | M142: 0 | N142: 0 | P142: 0 | S142: 0 | T142: 0 | X142: 0 | Y142: 0 | Z142: 0 | AC142: 0 | AD142: 0 | AE142: 0 | AF142: 0 | AG142: 0 | AH142: 0 | AI142: 0 | AJ142: 0 | AK142: 0 | AL142: 0 | CG142: 0
A143: 143 | G143: (ג) | H143: =$H$68 -> בדרוג נמוך מ- BBB- או לא מדורג עם בטוחה מספקת | J143: 0 | K143: 0 | L143: 0 | M143: 0 | N143: 0 | P143: 0 | S143: 0 | T143: 0 | X143: 0 | Y143: 0 | Z143: 0 | AC143: 0 | AD143: 0 | AE143: 0 | AF143: 0 | AG143: 0 | AH143: 0 | AI143: 0 | AJ143: 0 | AK143: 0 | AL143: 0 | CG143: 0
A144: 144 | G144: (ד) | H144: =H139 -> דרוג נמוך מ- BBB- או לא מדורג | J144: 0 | K144: 0 | L144: 0 | M144: 0 | N144: 0 | P144: 0 | S144: 0 | T144: 0 | X144: 0 | Y144: 0 | Z144: 0 | AC144: 0 | AD144: 0 | AE144: 0 | AF144: 0 | AG144: 0 | AH144: 0 | AI144: 0 | AJ144: 0 | AK144: 0 | AL144: 0 | CG144: 0
A145: 145 | F145: (3) | G145: סחיר - חברות זרות | J145: 2427970.991 | K145: 42.51566466 | L145: 15083.36712 | M145: 446398.6609 | N145: 15788.21628 | O145: 442851.2 | P145: 34607.93768 | Q145: 185786.39 | R145: 34458.05 | S145: 0 | T145: 0 | U145: 698435.95 | V145: 0 | W145: 46092.77 | X145: 0 | Y145: 2132.652316 | Z145: 0 | AA145: 50588.44 | AB145: 0 | AC145: 36933.74567 | AD145: 56744.92432 | AE145: 55196.06835 | AF145: 60174.36749 | AG145: 37965.19878 | AH145: 414.8943343 | AI145: 4673.435675 | AJ145: 7346.041649 | AK145: 40534.37251 | AL145: 20433.49122 | AM145: 0 | AN145: 0 | AO145: 0 | AP145: 0 | AQ145: 0 | AR145: 0 | AS145: 0 | AT145: 3191.91 | AU145: 0 | AV145: 0 | AW145: 0 | AX145: 0 | AY145: 0 | AZ145: 0 | BA145: 0 | BB145: 0 | BC145: 0 | BD145: 0 | BE145: 0 | BF145: 0 | BG145: 0 | BH145: 0 | BI145: 0 | BJ145: 0 | BK145: 0 | BL145: 0 | BM145: 0 | BN145: 0 | BO145: 0 | BP145: 0 | BQ145: 0 | BR145: 0 | BS145: 0 | BT145: 0 | BU145: 0 | BV145: 0 | BW145: 0 | BX145: 0 | BY145: 0 | BZ145: 0 | CA145: 0 | CB145: 0 | CC145: 0 | CD145: 0 | CE145: 0 | CF145: 0 | CG145: 132096.3913
A146: 146 | G146: (א) | H146: =$H$78 -> דרוג A- ומעלה | J146: 605905.3394 | K146: 10.60987504 | L146: 3764.086521 | M146: 111399.7405 | N146: 3939.983135 | O146: 110514.46 | P146: 8636.482217 | Q146: 46363.39 | R146: 8599.08 | S146: 0 | T146: 0 | U146: 174296.18 | W146: 11502.55 | X146: 0 | Y146: 532.2077833 | Z146: 0 | AA146: 12624.45 | AC146: 9216.892265 | AD146: 14160.81437 | AE146: 13774.29928 | AF146: 15016.64123 | AG146: 9474.297861 | AH146: 103.5377353 | AI146: 1166.265632 | AJ146: 1833.22072 | AK146: 10115.43877 | AL146: 5099.222139 | AT146: 796.55 | CG146: 32964.93938
A147: 147 | G147: (ב) | H147: =$H$79 -> דרוג BBB- ועד BBB+ | J147: 1389109.073 | K147: 24.32438217 | L147: 8629.609561 | M147: 255396.9629 | N147: 9032.873168 | O147: 253367.37 | P147: 19800.16049 | Q147: 106293.51 | R147: 19714.4 | S147: 0 | T147: 0 | U147: 399594.44 | W147: 26370.94 | X147: 0 | Y147: 1220.149508 | Z147: 0 | AA147: 28943.04 | AC147: 21130.81748 | AD147: 32465.33838 | AE147: 31579.18768 | AF147: 34427.41065 | AG147: 21720.93653 | AH147: 237.3725246 | AI147: 2673.80162 | AJ147: 4202.872321 | AK147: 23190.82935 | AL147: 11690.56347 | AT147: 1826.18 | CG147: 75575.98274
A148: 148 | G148: (ג) | H148: =$H$80 -> דרוג נמוך מ- BBB- או לא מדורג | J148: 432956.5792 | K148: 7.581407453 | L148: 2689.671038 | M148: 79601.95758 | N148: 2815.359974 | O148: 78969.37 | P148: 6171.294975 | Q148: 33129.49 | R148: 6144.57 | S148: 0 | T148: 0 | U148: 124545.33 | W148: 8219.28 | X148: 0 | Y148: 380.2950248 | Z148: 0 | AA148: 9020.95 | AC148: 6586.035925 | AD148: 10118.77158 | AE148: 9842.581393 | AF148: 10730.31561 | AG148: 6769.964388 | AH148: 73.98407451 | AI148: 833.3684227 | AJ148: 1309.948607 | AK148: 7228.104393 | AL148: 3643.705612 | AT148: 569.18 | CG148: 23555.4692
A149: 149 | F149: (4) | G149: לא סחיר - חברות זרות | J149: 125373.471 | K149: 3.70123661 | L149: 1313.095091 | M149: 38861.60735 | N149: 1374.456322 | O149: 39185.75 | P149: 2335.103424 | Q149: 12368.06 | R149: 1269.7 | S149: 0 | T149: 0 | U149: 0 | V149: 0 | W149: 488.82 | X149: 0 | Y149: 143.8965757 | Z149: 0 | AA149: 214.05 | AB149: 0 | AC149: 4014.038397 | AD149: 2027.701251 | AE149: 3642.879386 | AF149: 3830.109664 | AG149: 3076.582796 | AH149: 45.09160278 | AI149: 166.9987489 | AJ149: 484.8306137 | AK149: 2580.020336 | AL149: 1655.867204 | AM149: 0 | AN149: 0 | AO149: 0 | AP149: 0 | AQ149: 0 | AR149: 0 | AS149: 0 | AT149: 0 | AU149: 0 | AV149: 0 | AW149: 0 | AX149: 0 | AY149: 0 | AZ149: 0 | BA149: 0 | BB149: 0 | BC149: 0 | BD149: 0 | BE149: 0 | BF149: 0 | BG149: 0 | BH149: 0 | BI149: 0 | BJ149: 0 | BK149: 0 | BL149: 0 | BM149: 0 | BN149: 0 | BO149: 0 | BP149: 0 | BQ149: 0 | BR149: 0 | BS149: 0 | BT149: 0 | BU149: 0 | BV149: 0 | BW149: 0 | BX149: 0 | BY149: 0 | BZ149: 0 | CA149: 0 | CB149: 0 | CC149: 0 | CD149: 0 | CE149: 0 | CF149: 0 | CG149: 6291.111018
A150: 150 | G150: (א) | H150: =$H$78 -> דרוג A- ומעלה | J150: 0 | K150: 0 | L150: 0 | M150: 0 | N150: 0 | P150: 0 | S150: 0 | T150: 0 | X150: 0 | Y150: 0 | Z150: 0 | AC150: 0 | AD150: 0 | AE150: 0 | AF150: 0 | AG150: 0 | AH150: 0 | AI150: 0 | AJ150: 0 | AK150: 0 | AL150: 0 | CG150: 0
A151: 151 | G151: (ב) | H151: =$H$79 -> דרוג BBB- ועד BBB+ | J151: 0 | K151: 0 | L151: 0 | M151: 0 | N151: 0 | P151: 0 | S151: 0 | T151: 0 | X151: 0 | Y151: 0 | Z151: 0 | AC151: 0 | AD151: 0 | AE151: 0 | AF151: 0 | AG151: 0 | AH151: 0 | AI151: 0 | AJ151: 0 | AK151: 0 | AL151: 0 | CG151: 0
A152: 152 | G152: (ג) | H152: =$H$68 -> בדרוג נמוך מ- BBB- או לא מדורג עם בטוחה מספקת | J152: 0 | K152: 0 | L152: 0 | M152: 0 | N152: 0 | P152: 0 | S152: 0 | T152: 0 | X152: 0 | Y152: 0 | Z152: 0 | AC152: 0 | AD152: 0 | AE152: 0 | AF152: 0 | AG152: 0 | AH152: 0 | AI152: 0 | AJ152: 0 | AK152: 0 | AL152: 0 | CG152: 0
A153: 153 | G153: (ד) | H153: =H148 -> דרוג נמוך מ- BBB- או לא מדורג | J153: 125373.471 | K153: 3.70123661 | L153: 1313.095091 | M153: 38861.60735 | N153: 1374.456322 | O153: 39185.75 | P153: 2335.103424 | Q153: 12368.06 | R153: 1269.7 | S153: 0 | T153: 0 | W153: 488.82 | X153: 0 | Y153: 143.8965757 | Z153: 0 | AA153: 214.05 | AC153: 4014.038397 | AD153: 2027.701251 | AE153: 3642.879386 | AF153: 3830.109664 | AG153: 3076.582796 | AH153: 45.09160278 | AI153: 166.9987489 | AJ153: 484.8306137 | AK153: 2580.020336 | AL153: 1655.867204 | CG153: 6291.111018
A154: 154 | AC154: 0 | AD154: 0 | AE154: 0 | AF154: 0 | AG154: 0 | AH154: 0 | AI154: 0 | AJ154: 0 | AK154: 0 | AL154: 0 | CG154: 0
A155: 155 | D155: 4) | E155: מניות (למעט חברות מוחזקות) | J155: 12052926.71 | K155: 400.9185192 | L155: 142234.6624 | M155: 4209495.289 | N155: 148881.3203 | O155: 3586985.35 | P155: 35314.07334 | Q155: 282704.16 | R155: 50494.17 | S155: 1121632.415 | T155: 0 | U155: 94795.19 | V155: 0 | W155: 723.15 | X155: 0 | Y155: 2176.166664 | Z155: 81051.46454 | AA155: 321.48 | AB155: 0 | AC155: 565733.1998 | AD155: 305291.9366 | AE155: 199099.2606 | AF155: 408568.0289 | AG155: 86249.87561 | AH155: 6355.150151 | AI155: 25143.43344 | AJ155: 26498.10945 | AK155: 275217.6611 | AL155: 46421.09439 | AM155: 50397.64 | AN155: 0 | AO155: 0 | AP155: 0 | AQ155: 0 | AR155: 0 | AS155: 0 | AT155: 356.55 | AU155: 4950.99 | AV155: 0 | AW155: 0 | AX155: 0 | AY155: 0 | AZ155: 0 | BA155: 0 | BB155: 0 | BC155: 0 | BD155: 0 | BE155: 0 | BF155: 0 | BG155: 0 | BH155: 0 | BI155: 0 | BJ155: 0 | BK155: 0 | BL155: 0 | BM155: 0 | BN155: 0 | BO155: 0 | BP155: 0 | BQ155: 0 | BR155: 0 | BS155: 0 | BT155: 0 | BU155: 0 | BV155: 0 | BW155: 0 | BX155: 0 | BY155: 0 | BZ155: 0 | CA155: 0 | CB155: 0 | CC155: 0 | CD155: 0 | CE155: 0 | CF155: 0 | CG155: 295433.9697
A156: 156 | E156: א) | F156: בישראל | J156: 7440126.124 | K156: 257.6295463 | L156: 91399.74777 | M156: 2705014.384 | N156: 95670.87866 | O156: 2179570.31 | P156: 2369.060858 | Q156: 79333.83 | R156: 16908.75 | S156: 803913.4604 | T156: 0 | U156: 0 | V156: 0 | W156: 237.55 | X156: 0 | Y156: 145.9891419 | Z156: 58092.43959 | AA156: 0 | AB156: 0 | AC156: 358689.7277 | AD156: 197698.0171 | AE156: 125745.278 | AF156: 258494.6128 | AG156: 47441.36894 | AH156: 4029.332338 | AI156: 16282.14289 | AJ156: 16735.43201 | AK156: 174125.9172 | AL156: 25533.72106 | AM156: 22493.21 | AN156: 0 | AO156: 0 | AP156: 0 | AQ156: 0 | AR156: 0 | AS156: 0 | AT156: 0 | AU156: 0 | AV156: 0 | AW156: 0 | AX156: 0 | AY156: 0 | AZ156: 0 | BA156: 0 | BB156: 0 | BC156: 0 | BD156: 0 | BE156: 0 | BF156: 0 | BG156: 0 | BH156: 0 | BI156: 0 | BJ156: 0 | BK156: 0 | BL156: 0 | BM156: 0 | BN156: 0 | BO156: 0 | BP156: 0 | BQ156: 0 | BR156: 0 | BS156: 0 | BT156: 0 | BU156: 0 | BV156: 0 | BW156: 0 | BX156: 0 | BY156: 0 | BZ156: 0 | CA156: 0 | CB156: 0 | CC156: 0 | CD156: 0 | CE156: 0 | CF156: 0 | CG156: 159943.3335
A157: 157 | F157: (1) | G157: סחיר | J157: 6570588.424 | K157: 220.7670419 | L157: 78321.9636 | M157: 2317971.803 | N157: 81981.96667 | O157: 1989042.52 | P157: 0.3108447479 | Q157: 28600.35 | R157: 813.9 | S157: 794213.8726 | T157: 0 | U157: 0 | V157: 0 | W157: 237.55 | X157: 0 | Y157: 0.01915525211 | Z157: 57391.52742 | AA157: 0 | AB157: 0 | AC157: 329200.247 | AD157: 180347.844 | AE157: 107654.2605 | AF157: 238781.7429 | AG157: 37200.3974 | AH157: 3698.062974 | AI157: 14853.20596 | AJ157: 14327.69951 | AK157: 160847.0271 | AL157: 20021.8626 | AM157: 20166.01 | AN157: 0 | AO157: 0 | AP157: 0 | AQ157: 0 | AR157: 0 | AS157: 0 | AT157: 0 | AU157: 0 | AV157: 0 | AW157: 0 | AX157: 0 | AY157: 0 | AZ157: 0 | BA157: 0 | BB157: 0 | BC157: 0 | BD157: 0 | BE157: 0 | BF157: 0 | BG157: 0 | BH157: 0 | BI157: 0 | BJ157: 0 | BK157: 0 | BL157: 0 | BM157: 0 | BN157: 0 | BO157: 0 | BP157: 0 | BQ157: 0 | BR157: 0 | BS157: 0 | BT157: 0 | BU157: 0 | BV157: 0 | BW157: 0 | BX157: 0 | BY157: 0 | BZ157: 0 | CA157: 0 | CB157: 0 | CC157: 0 | CD157: 0 | CE157: 0 | CF157: 0 | CG157: 94693.51354
A158: 158 | G158: (א) | H158: ='[1]טופס 106 חודשי'!H158 -> ת"א 35 | J158: 4303860.627 | K158: 143.6885765 | L158: 50976.68278 | M158: 1508676.594 | N158: 53358.83469 | O158: 1310869.35 | P158: 0 | Q158: 16975.28 | R158: 0 | S158: 524419.993 | T158: 0 | U158: 0 | V158: 0 | W158: 156.85 | X158: 0 | Y158: 0 | Z158: 37895.66696 | AA158: 0 | AB158: 0 | AC158: 217371.1663 | AD158: 119083.8077 | AE158: 71084.18923 | AF158: 157667.7541 | AG158: 24563.44953 | AH158: 2441.833714 | AI158: 9807.582297 | AJ158: 9460.590768 | AK158: 106207.4059 | AL158: 13220.45047 | AM158: 13315.63 | AN158: 0 | AO158: 0 | AP158: 0 | AQ158: 0 | AR158: 0 | AS158: 0 | AT158: 0 | AU158: 0 | AV158: 0 | AW158: 0 | AX158: 0 | AY158: 0 | AZ158: 0 | BA158: 0 | BB158: 0 | BC158: 0 | BD158: 0 | BE158: 0 | BF158: 0 | BG158: 0 | BH158: 0 | BI158: 0 | BJ158: 0 | BK158: 0 | BL158: 0 | BM158: 0 | BN158: 0 | BO158: 0 | BP158: 0 | BQ158: 0 | BR158: 0 | BS158: 0 | BT158: 0 | BU158: 0 | BV158: 0 | BW158: 0 | BX158: 0 | BY158: 0 | BZ158: 0 | CA158: 0 | CB158: 0 | CC158: 0 | CD158: 0 | CE158: 0 | CF158: 0 | CG158: 56163.82743
A159: 159 | H159: a | I159: מניות | J159: 4303860.627 | K159: 143.6885765 | L159: 50976.68278 | M159: 1508676.594 | N159: 53358.83469 | O159: 1310869.35 | P159: 0 | Q159: 16975.28 | S159: 524419.993 | T159: 0 | W159: 156.85 | X159: 0 | Y159: 0 | Z159: 37895.66696 | AC159: 217371.1663 | AD159: 119083.8077 | AE159: 71084.18923 | AF159: 157667.7541 | AG159: 24563.44953 | AH159: 2441.833714 | AI159: 9807.582297 | AJ159: 9460.590768 | AK159: 106207.4059 | AL159: 13220.45047 | AM159: 13315.63 | CG159: 56163.82743
A160: 160 | H160: b | I160: אופציה 001 Call ח (Long) | J160: 0 | K160: 0 | L160: 0 | M160: 0 | N160: 0 | P160: 0 | S160: 0 | T160: 0 | X160: 0 | Y160: 0 | Z160: 0 | AC160: 0 | AD160: 0 | AE160: 0 | AF160: 0 | AG160: 0 | AH160: 0 | AI160: 0 | AJ160: 0 | AK160: 0 | AL160: 0 | CG160: 0
A161: 161 | H161: c | I161: אופציה 001 Call ח (Short) | J161: 0 | K161: 0 | L161: 0 | M161: 0 | N161: 0 | P161: 0 | S161: 0 | T161: 0 | X161: 0 | Y161: 0 | Z161: 0 | AC161: 0 | AD161: 0 | AE161: 0 | AF161: 0 | AG161: 0 | AH161: 0 | AI161: 0 | AJ161: 0 | AK161: 0 | AL161: 0 | CG161: 0
A162: 162 | G162: (ב) | H162: ='[1]טופס 106 חודשי'!H162 -> ת"א 90 | J162: 1662422.497 | K162: 55.31964921 | L162: 19625.86224 | M162: 580835.7349 | N162: 20542.98323 | O162: 504680.57 | P162: 0 | Q162: 6535.42 | S162: 201900.0474 | T162: 0 | W162: 60.39 | X162: 0 | Y162: 0 | Z162: 14589.71256 | AC162: 83687.20185 | AD162: 45846.89164 | AE162: 27367.18313 | AF162: 60701.59141 | AG162: 9456.84908 | AH162: 940.0981481 | AI162: 3775.888356 | AJ162: 3642.296871 | AK162: 40889.51859 | AL162: 5089.83092 | AM162: 5126.48 | CG162: 27072.62691
A163: 163 | G163: (ג) | H163: מניות היתר | J163: 414488.5011 | K163: 15.4216084 | L163: 5471.154759 | M163: 161921.1506 | N163: 5726.823059 | O163: 115678.33 | P163: 0 | Q163: 4340.98 | R163: 813.9 | S163: 44764.93384 | T163: 0 | W163: 13.39 | X163: 0 | Y163: 0 | Z163: 3234.806161 | AC163: 18554.99294 | AD163: 10165.09633 | AE163: 6067.806034 | AF163: 13458.65473 | AG163: 2096.759648 | AH163: 208.4370622 | AI163: 837.1836673 | AJ163: 807.5639656 | AK163: 9065.955273 | AL163: 1128.510352 | AM163: 1136.63 | CG163: 8980.021084
A164: 164 | G164: (ד) | H164: מניות זרות הנסחרות בארץ | J164: 189816.7981 | K164: 6.337207719 | L164: 2248.263817 | M164: 66538.32328 | N164: 2353.325694 | O164: 57814.27 | P164: 0.3108447479 | Q164: 748.67 | S164: 23128.89826 | T164: 0 | W164: 6.92 | X164: 0 | Y164: 0.01915525211 | Z164: 1671.341744 | AC164: 9586.88595 | AD164: 5252.048358 | AE164: 3135.082099 | AF164: 6953.74274 | AG164: 1083.339145 | AH164: 107.6940503 | AI164: 432.5516416 | AJ164: 417.2479011 | AK164: 4684.14726 | AL164: 583.0708549 | AM164: 587.27 | CG164: 2477.038123
A165: 165 | F165: (2) | G165: לא סחיר | J165: 869537.7 | K165: 36.86250439 | L165: 13077.78418 | M165: 387042.5813 | N165: 13688.91199 | O165: 190527.79 | P165: 2368.750013 | Q165: 50733.48 | R165: 16094.85 | S165: 9699.587839 | T165: 0 | W165: 0 | X165: 0 | Y165: 145.9699866 | Z165: 700.9121607 | AC165: 29489.48064 | AD165: 17350.17307 | AE165: 18091.01749 | AF165: 19712.86991 | AG165: 10240.97154 | AH165: 331.269364 | AI165: 1428.936927 | AJ165: 2407.732506 | AK165: 13278.89009 | AL165: 5511.858459 | AM165: 2327.2 | CG165: 65249.82
A166: 166 | E166: ב) | F166: בחו"ל | J166: 4612800.586 | K166: 143.2889729 | L166: 50834.91461 | M166: 1504480.905 | N166: 53210.44167 | O166: 1407415.04 | P166: 32945.01248 | Q166: 203370.33 | R166: 33585.42 | S166: 317718.955 | T166: 0 | U166: 94795.19 | V166: 0 | W166: 485.6 | X166: 0 | Y166: 2030.177522 | Z166: 22959.02496 | AA166: 321.48 | AB166: 0 | AC166: 207043.4722 | AD166: 107593.9195 | AE166: 73353.98256 | AF166: 150073.4161 | AG166: 38808.50667 | AH166: 2325.817813 | AI166: 8861.290549 | AJ166: 9762.677435 | AK166: 101091.7439 | AL166: 20887.37333 | AM166: 27904.43 | AN166: 0 | AO166: 0 | AP166: 0 | AQ166: 0 | AR166: 0 | AS166: 0 | AT166: 356.55 | AU166: 4950.99 | AV166: 0 | AW166: 0 | AX166: 0 | AY166: 0 | AZ166: 0 | BA166: 0 | BB166: 0 | BC166: 0 | BD166: 0 | BE166: 0 | BF166: 0 | BG166: 0 | BH166: 0 | BI166: 0 | BJ166: 0 | BK166: 0 | BL166: 0 | BM166: 0 | BN166: 0 | BO166: 0 | BP166: 0 | BQ166: 0 | BR166: 0 | BS166: 0 | BT166: 0 | BU166: 0 | BV166: 0 | BW166: 0 | BX166: 0 | BY166: 0 | BZ166: 0 | CA166: 0 | CB166: 0 | CC166: 0 | CD166: 0 | CE166: 0 | CF166: 0 | CG166: 135490.6362
A167: 167 | F167: (1) | G167: סחיר | J167: 2985948.246 | K167: 98.47875919 | L167: 34937.50574 | M167: 1033990.332 | N167: 36570.14328 | O167: 894200.68 | P167: 0 | Q167: 22828.85 | R167: 31.6 | S167: 315249.2789 | T167: 0 | U167: 94795.19 | V167: 0 | W167: 57.3 | X167: 0 | Y167: 0 | Z167: 22780.56108 | AA167: 3.36 | AB167: 0 | AC167: 144080.6831 | AD167: 79147.51692 | AE167: 45170.68594 | AF167: 105437.805 | AG167: 16233.88009 | AH167: 1618.526853 | AI167: 6518.483082 | AJ167: 6011.764064 | AK167: 71024.51498 | AL167: 8737.339906 | AM167: 8298.71 | AN167: 0 | AO167: 0 | AP167: 0 | AQ167: 0 | AR167: 0 | AS167: 0 | AT167: 356.55 | AU167: 4950.99 | AV167: 0 | AW167: 0 | AX167: 0 | AY167: 0 | AZ167: 0 | BA167: 0 | BB167: 0 | BC167: 0 | BD167: 0 | BE167: 0 | BF167: 0 | BG167: 0 | BH167: 0 | BI167: 0 | BJ167: 0 | BK167: 0 | BL167: 0 | BM167: 0 | BN167: 0 | BO167: 0 | BP167: 0 | BQ167: 0 | BR167: 0 | BS167: 0 | BT167: 0 | BU167: 0 | BV167: 0 | BW167: 0 | BX167: 0 | BY167: 0 | BZ167: 0 | CA167: 0 | CB167: 0 | CC167: 0 | CD167: 0 | CE167: 0 | CF167: 0 | CG167: 32817.51649
A168: 168 | G168: (א) | H168: חברות ישראליות | J168: 1236447.867 | K168: 41.28001505 | L168: 14644.99324 | M168: 433424.7997 | N168: 15329.35709 | O168: 376597.14 | P168: 0 | Q168: 4876.79 | S168: 150659.6163 | T168: 0 | W168: 45.06 | X168: 0 | Y168: 0 | Z168: 10886.97365 | AC168: 62448.15022 | AD168: 34211.35851 | AE168: 20421.64448 | AF168: 45296.06749 | AG168: 7056.783596 | AH168: 701.5097778 | AI168: 2817.601491 | AJ168: 2717.915521 | AK168: 30512.12251 | AL168: 3798.076404 | AM168: 3825.43 | CG168: 16135.19715
A169: 169 | G169: (ב) | H169: חברות זרות החזקה מתחת ל-10% | J169: 1749475.959 | K169: 57.19792734 | L169: 20292.22272 | M169: 600556.9565 | N169: 21240.48288 | O169: 517596.09 | P169: 0 | Q169: 17951.96 | R169: 31.6 | S169: 164586.6782 | T169: 0 | U169: 94795.19 | W169: 12.24 | X169: 0 | Y169: 0 | Z169: 11893.37178 | AA169: 3.36 | AC169: 81631.29681 | AD169: 44935.48396 | AE169: 24748.63549 | AF169: 60140.84127 | AG169: 9176.959976 | AH169: 917.0031888 | AI169: 3700.826044 | AJ169: 3293.794512 | AK169: 40511.78873 | AL169: 4939.190024 | AM169: 4473.2 | AT169: 356.55 | AU169: 4950.99 | CG169: 16682.04935
A170: 170 | G170: (ג) | H170: חברות זרות החזקה של 10% ומעלה | J170: 24.42 | K170: 0.0008167991255 | L170: 0.2897774543 | M170: 8.576086926 | N170: 0.3033188203 | O170: 7.45 | P170: 0 | Q170: 0.1 | S170: 2.984345088 | T170: 0 | W170: 0 | X170: 0 | Y170: 0 | Z170: 0.2156549122 | AC170: 1.236114142 | AD170: 0.6744529609 | AE170: 0.405969537 | AF170: 0.8962633356 | AG170: 0.1365217566 | AH170: 0.01388585817 | AI170: 0.05554703908 | AJ170: 0.05403046297 | AK170: 0.6037366644 | AL170: 0.07347824336 | AM170: 0.08 | CG170: 0.27
A171: 171 | F171: (2) | G171: לא סחיר | J171: 1626852.34 | K171: 44.81021374 | L171: 15897.40887 | M171: 470490.5725 | N171: 16640.29838 | O171: 513214.36 | P171: 32945.01248 | Q171: 180541.48 | R171: 33553.82 | S171: 2469.676125 | T171: 0 | U171: 0 | V171: 0 | W171: 428.3 | X171: 0 | Y171: 2030.177522 | Z171: 178.4638747 | AA171: 318.12 | AB171: 0 | AC171: 62962.78904 | AD171: 28446.40253 | AE171: 28183.29663 | AF171: 44635.61104 | AG171: 22574.62658 | AH171: 707.2909605 | AI171: 2342.807467 | AJ171: 3750.913371 | AK171: 30067.22896 | AL171: 12150.03342 | AM171: 19605.72 | AN171: 0 | AO171: 0 | AP171: 0 | AQ171: 0 | AR171: 0 | AS171: 0 | AT171: 0 | AU171: 0 | AV171: 0 | AW171: 0 | AX171: 0 | AY171: 0 | AZ171: 0 | BA171: 0 | BB171: 0 | BC171: 0 | BD171: 0 | BE171: 0 | BF171: 0 | BG171: 0 | BH171: 0 | BI171: 0 | BJ171: 0 | BK171: 0 | BL171: 0 | BM171: 0 | BN171: 0 | BO171: 0 | BP171: 0 | BQ171: 0 | BR171: 0 | BS171: 0 | BT171: 0 | BU171: 0 | BV171: 0 | BW171: 0 | BX171: 0 | BY171: 0 | BZ171: 0 | CA171: 0 | CB171: 0 | CC171: 0 | CD171: 0 | CE171: 0 | CF171: 0 | CG171: 102673.1197
A172: 172 | G172: (א) | H172: חברות ישראליות | J172: 0 | K172: 0 | L172: 0 | M172: 0 | N172: 0 | P172: 0 | S172: 0 | T172: 0 | X172: 0 | Y172: 0 | Z172: 0 | AC172: 0 | AD172: 0 | AE172: 0 | AF172: 0 | AG172: 0 | AH172: 0 | AI172: 0 | AJ172: 0 | AK172: 0 | AL172: 0 | CG172: 0
A173: 173 | G173: (ב) | H173: חברות זרות | J173: 1626852.34 | K173: 44.81021374 | L173: 15897.40887 | M173: 470490.5725 | N173: 16640.29838 | O173: 513214.36 | P173: 32945.01248 | Q173: 180541.48 | R173: 33553.82 | S173: 2469.676125 | T173: 0 | W173: 428.3 | X173: 0 | Y173: 2030.177522 | Z173: 178.4638747 | AA173: 318.12 | AC173: 62962.78904 | AD173: 28446.40253 | AE173: 28183.29663 | AF173: 44635.61104 | AG173: 22574.62658 | AH173: 707.2909605 | AI173: 2342.807467 | AJ173: 3750.913371 | AK173: 30067.22896 | AL173: 12150.03342 | AM173: 19605.72 | CG173: 102673.1197
A174: 174 | J174: 0 | AC174: 0 | AD174: 0 | AE174: 0 | AF174: 0 | AG174: 0 | AH174: 0 | AI174: 0 | AJ174: 0 | AK174: 0 | AL174: 0 | CG174: 0
A175: 175 | D175: 5) | E175: השקעות בקרנות סל | J175: 12325269.19 | K175: 304.6099124 | L175: 108067.0659 | M175: 3198290.75 | N175: 113117.0644 | O175: 2799262.04 | P175: 28675.72 | Q175: 265144.15 | R175: 43823.81 | S175: 778675.6934 | T175: 327.8116781 | U175: 661854.9 | V175: 0 | W175: 31957.35 | X175: 17.47832185 | Y175: 1767.090002 | Z175: 56268.70665 | AA175: 14489.28 | AB175: 507625.03 | AC175: 421214.5664 | AD175: 249387.7871 | AE175: 162752.8873 | AF175: 343790.3035 | AG175: 76535.31246 | AH175: 4731.703595 | AI175: 20539.24285 | AJ175: 21660.77267 | AK175: 231582.3965 | AL175: 41192.55754 | AM175: 21376.84 | AN175: 39399.54 | AO175: 1374199.65 | AP175: 47268.59 | AQ175: 173039.21 | AR175: 170589.96 | AS175: 57076.1 | AT175: 2333.33 | AU175: 5470.78 | AV175: 97955.7 | AW175: 0 | AX175: 0 | AY175: 0 | AZ175: 0 | BA175: 0 | BB175: 0 | BC175: 0 | BD175: 0 | BE175: 0 | BF175: 0 | BG175: 0 | BH175: 0 | BI175: 0 | BJ175: 0 | BK175: 0 | BL175: 0 | BM175: 0 | BN175: 0 | BO175: 0 | BP175: 0 | BQ175: 0 | BR175: 0 | BS175: 0 | BT175: 0 | BU175: 0 | BV175: 0 | BW175: 0 | BX175: 0 | BY175: 0 | BZ175: 0 | CA175: 0 | CB175: 0 | CC175: 0 | CD175: 0 | CE175: 0 | CF175: 0 | CG175: 153503.4104
A176: 176 | E176: א) | F176: בישראל | J176: 3771453.502 | K176: 42.40853304 | L176: 15045.35982 | M176: 445273.8188 | N176: 15748.43289 | O176: 425130.09 | P176: 24822.1965 | Q176: 153217.7 | R176: 39813.82 | S176: 81080.4966 | T176: 327.8116781 | U176: 5846.07 | V176: 0 | W176: 26819.28 | X176: 17.47832185 | Y176: 1529.623502 | Z176: 5859.043395 | AA176: 0.01 | AB176: 275493.43 | AC176: 54648.36888 | AD176: 43271.10959 | AE176: 48750.18995 | AF176: 68941.01195 | AG176: 31618.39983 | AH176: 613.8911236 | AI176: 3563.750409 | AJ176: 6488.160053 | AK176: 46439.71805 | AL176: 17017.54017 | AM176: 2076.54 | AN176: 39399.54 | AO176: 1374199.65 | AP176: 47268.59 | AQ176: 173039.21 | AR176: 170589.96 | AS176: 57076.1 | AT176: 21.99 | AU176: 783.36 | AV176: 0 | AW176: 0 | AX176: 0 | AY176: 0 | AZ176: 0 | BA176: 0 | BB176: 0 | BC176: 0 | BD176: 0 | BE176: 0 | BF176: 0 | BG176: 0 | BH176: 0 | BI176: 0 | BJ176: 0 | BK176: 0 | BL176: 0 | BM176: 0 | BN176: 0 | BO176: 0 | BP176: 0 | BQ176: 0 | BR176: 0 | BS176: 0 | BT176: 0 | BU176: 0 | BV176: 0 | BW176: 0 | BX176: 0 | BY176: 0 | BZ176: 0 | CA176: 0 | CB176: 0 | CC176: 0 | CD176: 0 | CE176: 0 | CF176: 0 | CG176: 69579.35173
A177: 177 | F177: (1) | G177: שמחקות מדדי מניות בארץ | J177: 858232.6637 | K177: 20.06620257 | L177: 7118.926694 | M177: 210687.6614 | N177: 7451.595749 | O177: 183063.75 | P177: 0 | Q177: 2370.61 | S177: 73235.58598 | T177: 0 | W177: 21.91 | X177: 0 | Y177: 0 | Z177: 5292.154023 | AB177: 76182.78 | AC177: 30356.02632 | AD177: 16630.12524 | AE177: 9926.952453 | AF177: 22018.39979 | AG177: 3430.304167 | AH177: 341.0036839 | AI177: 1369.634756 | AJ177: 1321.177547 | AK177: 14831.93021 | AL177: 1846.245833 | AM177: 1859.54 | AR177: 170589.96 | AS177: 10423.01 | CG177: 7843.313729
A178: 178 | F178: (2) | G178: שמחקות מדדי מניות בחו"ל | J178: 1483029.668 | K178: 2.894748571 | L178: 1026.975722 | M178: 30393.783 | N178: 1074.96653 | O178: 26138.36 | P178: 0 | Q178: 1025.82 | R178: 1.95 | S178: 7843.175977 | T178: 0 | U178: 5845.9 | W178: 0.06 | X178: 0 | Y178: 0 | Z178: 566.7640226 | AC178: 4075.122214 | AD178: 2246.362597 | AE178: 1212.648658 | AF178: 3014.844633 | AG178: 457.4779055 | AH178: 45.77778635 | AI178: 185.0074033 | AJ178: 161.391342 | AK178: 2030.845367 | AL178: 246.2220945 | AM178: 217 | AO178: 1374199.65 | AS178: 19433.12 | AT178: 21.99 | AU178: 783.36 | CG178: 778.1982279
A179: 179 | F179: (3) | G179: שמחקות מדדי אג"ח בארץ | J179: 1430191.17 | K179: 19.4475819 | L179: 6899.457403 | M179: 204192.3744 | N179: 7221.870608 | O179: 215927.98 | P179: 24822.1965 | Q179: 149821.27 | R179: 39811.87 | S179: 1.734650582 | T179: 327.8116781 | U179: 0.17 | W179: 26797.31 | X179: 17.47832185 | Y179: 1529.623502 | Z179: 0.1253494177 | AA179: 0.01 | AB179: 199310.65 | AC179: 20217.22035 | AD179: 24394.62175 | AE179: 37610.58884 | AF179: 43907.76753 | AG179: 27730.61776 | AH179: 227.1096534 | AI179: 2009.108249 | AJ179: 5005.591164 | AK179: 29576.94247 | AL179: 14925.07224 | AN179: 39399.54 | AP179: 47268.59 | AQ179: 173039.21 | AS179: 27219.97 | CG179: 60957.83977
A180: 180 | F180: (4) | G180: שמחקות מדדי אג"ח בחו"ל | J180: 0 | K180: 0 | L180: 0 | M180: 0 | N180: 0 | P180: 0 | S180: 0 | T180: 0 | X180: 0 | Y180: 0 | Z180: 0 | AC180: 0 | AD180: 0 | AE180: 0 | AF180: 0 | AG180: 0 | AH180: 0 | AI180: 0 | AJ180: 0 | AK180: 0 | AL180: 0 | CG180: 0
A181: 181 | F181: (5) | G181: בחסר | J181: 0 | K181: 0 | L181: 0 | M181: 0 | N181: 0 | P181: 0 | S181: 0 | T181: 0 | X181: 0 | Y181: 0 | Z181: 0 | AC181: 0 | AD181: 0 | AE181: 0 | AF181: 0 | AG181: 0 | AH181: 0 | AI181: 0 | AJ181: 0 | AK181: 0 | AL181: 0 | CG181: 0
A182: 182 | F182: (6) | G182: אחר | J182: 0 | K182: 0 | L182: 0 | M182: 0 | N182: 0 | P182: 0 | S182: 0 | T182: 0 | X182: 0 | Y182: 0 | Z182: 0 | AC182: 0 | AD182: 0 | AE182: 0 | AF182: 0 | AG182: 0 | AH182: 0 | AI182: 0 | AJ182: 0 | AK182: 0 | AL182: 0 | CG182: 0
A183: 183 | E183: ב) | F183: בחו"ל | J183: 8553815.689 | K183: 262.2013794 | L183: 93021.70613 | M183: 2753016.931 | N183: 97368.6315 | O183: 2374131.95 | P183: 3853.5235 | Q183: 111926.45 | R183: 4009.99 | S183: 697595.1967 | T183: 0 | U183: 656008.83 | V183: 0 | W183: 5138.07 | X183: 0 | Y183: 237.4664995 | Z183: 50409.66325 | AA183: 14489.27 | AB183: 232131.6 | AC183: 366566.1975 | AD183: 206116.6776 | AE183: 114002.6974 | AF183: 274849.2916 | AG183: 44916.91263 | AH183: 4117.812471 | AI183: 16975.49245 | AJ183: 15172.61262 | AK183: 185142.6784 | AL183: 24175.01737 | AM183: 19300.3 | AN183: 0 | AO183: 0 | AP183: 0 | AQ183: 0 | AR183: 0 | AS183: 0 | AT183: 2311.34 | AU183: 4687.42 | AV183: 97955.7 | AW183: 0 | AX183: 0 | AY183: 0 | AZ183: 0 | BA183: 0 | BB183: 0 | BC183: 0 | BD183: 0 | BE183: 0 | BF183: 0 | BG183: 0 | BH183: 0 | BI183: 0 | BJ183: 0 | BK183: 0 | BL183: 0 | BM183: 0 | BN183: 0 | BO183: 0 | BP183: 0 | BQ183: 0 | BR183: 0 | BS183: 0 | BT183: 0 | BU183: 0 | BV183: 0 | BW183: 0 | BX183: 0 | BY183: 0 | BZ183: 0 | CA183: 0 | CB183: 0 | CC183: 0 | CD183: 0 | CE183: 0 | CF183: 0 | CG183: 83924.05866
A184: 184 | F184: (1) | G184: שמחקות מדדי מניות | J184: 8207237.849 | K184: 257.4673417 | L184: 91342.20214 | M184: 2703311.297 | N184: 95610.64391 | O184: 2324821.32 | P184: 0 | Q184: 91239.49 | R184: 173.15 | S184: 697595.1967 | T184: 0 | U184: 559682.72 | W184: 5.72 | X184: 0 | Y184: 0 | Z184: 50409.66325 | AB184: 183316.63 | AC184: 362453.6952 | AD184: 199798.2359 | AE184: 107856.7246 | AF184: 268148.9882 | AG184: 40689.56195 | AH184: 4071.614776 | AI184: 16455.11409 | AJ184: 14354.64544 | AK184: 180629.2518 | AL184: 21899.78805 | AM184: 19300.3 | AT184: 1955.93 | AU184: 4687.42 | AV184: 97955.7 | CG184: 69215.37891
A185: 185 | F185: (2) | G185: שמחקות מדדים אחרים | J185: 346577.8397 | K185: 4.734037685 | L185: 1679.503988 | M185: 49705.63438 | N185: 1757.987589 | O185: 49310.63 | P185: 3853.5235 | Q185: 20686.96 | R185: 3836.84 | S185: 0 | T185: 0 | U185: 96326.11 | W185: 5132.35 | X185: 0 | Y185: 237.4664995 | Z185: 0 | AA185: 14489.27 | AB185: 48814.97 | AC185: 4112.502305 | AD185: 6318.441641 | AE185: 6145.972821 | AF185: 6700.303369 | AG185: 4227.350687 | AH185: 46.1976947 | AI185: 520.3783586 | AJ185: 817.9671789 | AK185: 4513.426631 | AL185: 2275.229313 | AT185: 355.41 | CG185: 14708.67975
A186: 186 | F186: (3) | G186: בחסר | J186: 0 | K186: 0 | L186: 0 | M186: 0 | N186: 0 | P186: 0 | S186: 0 | T186: 0 | X186: 0 | Y186: 0 | Z186: 0 | AC186: 0 | AD186: 0 | AE186: 0 | AF186: 0 | AG186: 0 | AH186: 0 | AI186: 0 | AJ186: 0 | AK186: 0 | AL186: 0 | CG186: 0
A187: 187 | F187: (4) | G187: אחר | J187: 0 | K187: 0 | L187: 0 | M187: 0 | N187: 0 | P187: 0 | S187: 0 | T187: 0 | X187: 0 | Y187: 0 | Z187: 0 | AC187: 0 | AD187: 0 | AE187: 0 | AF187: 0 | AG187: 0 | AH187: 0 | AI187: 0 | AJ187: 0 | AK187: 0 | AL187: 0 | CG187: 0
A188: 188 | AC188: 0 | AD188: 0 | AE188: 0 | AF188: 0 | AG188: 0 | AH188: 0 | AI188: 0 | AJ188: 0 | AK188: 0 | AL188: 0 | CG188: 0
A189: 189 | D189: 6) | E189: תעודות השתתפות בקרנות נאמנות | J189: 2641913.708 | K189: 63.67635224 | L189: 22590.58644 | M189: 668578.0076 | N189: 23646.24965 | O189: 611107.23 | P189: 21199.8002 | Q189: 127082.76 | R189: 21257.19 | S189: 104039.3338 | T189: 0 | U189: 503322.49 | V189: 0 | W189: 28236.24 | X189: 0 | Y189: 1306.399803 | Z189: 7518.096178 | AA189: 31676.2 | AB189: 0 | AC189: 75629.17154 | AD189: 63977.06495 | AE189: 49595.65681 | AF189: 76069.07194 | AG189: 29206.99004 | AH189: 849.5784605 | AI189: 5269.065054 | AJ189: 6600.68319 | AK189: 51241.28806 | AL189: 15719.67996 | AM189: 2825.58 | AN189: 0 | AO189: 0 | AP189: 0 | AQ189: 0 | AR189: 0 | AS189: 0 | AT189: 2239.22 | AU189: 0 | AV189: 0 | AW189: 0 | AX189: 0 | AY189: 0 | AZ189: 0 | BA189: 0 | BB189: 0 | BC189: 0 | BD189: 0 | BE189: 0 | BF189: 0 | BG189: 0 | BH189: 0 | BI189: 0 | BJ189: 0 | BK189: 0 | BL189: 0 | BM189: 0 | BN189: 0 | BO189: 0 | BP189: 0 | BQ189: 0 | BR189: 0 | BS189: 0 | BT189: 0 | BU189: 0 | BV189: 0 | BW189: 0 | BX189: 0 | BY189: 0 | BZ189: 0 | CA189: 0 | CB189: 0 | CC189: 0 | CD189: 0 | CE189: 0 | CF189: 0 | CG189: 91066.39827
A190: 190 | E190: א) | F190: בישראל | J190: 7789.361212 | K190: 0.2559110935 | L190: 90.79008887 | M190: 2686.97127 | N190: 95.03273026 | O190: 2334.68 | P190: 0 | Q190: 30.23 | R190: 124.12 | S190: 933.9974256 | T190: 0 | W190: 0.28 | X190: 0 | Y190: 0 | Z190: 67.49257438 | AC190: 387.1410603 | AD190: 212.0923585 | AE190: 126.6007176 | AF190: 280.8112532 | AG190: 43.74547145 | AH190: 4.348939692 | AI190: 17.46764149 | AJ190: 16.84928242 | AK190: 189.1587468 | AL190: 23.54452855 | AM190: 23.72 | CG190: 100.0312125
A191: 191 | E191: ב) | F191: בחו"ל | J191: 2634124.347 | K191: 63.42044114 | L191: 22499.79635 | M191: 665891.0363 | N191: 23551.21692 | O191: 608772.55 | P191: 21199.8002 | Q191: 127052.53 | R191: 21133.07 | S191: 103105.3364 | T191: 0 | U191: 503322.49 | V191: 0 | W191: 28235.96 | X191: 0 | Y191: 1306.399803 | Z191: 7450.603604 | AA191: 31676.2 | AB191: 0 | AC191: 75242.03048 | AD191: 63764.97259 | AE191: 49469.05609 | AF191: 75788.26068 | AG191: 29163.24457 | AH191: 845.2295208 | AI191: 5251.597412 | AJ191: 6583.833908 | AK191: 51052.12932 | AL191: 15696.13543 | AM191: 2801.86 | AN191: 0 | AO191: 0 | AP191: 0 | AQ191: 0 | AR191: 0 | AS191: 0 | AT191: 2239.22 | AU191: 0 | AV191: 0 | AW191: 0 | AX191: 0 | AY191: 0 | AZ191: 0 | BA191: 0 | BB191: 0 | BC191: 0 | BD191: 0 | BE191: 0 | BF191: 0 | BG191: 0 | BH191: 0 | BI191: 0 | BJ191: 0 | BK191: 0 | BL191: 0 | BM191: 0 | BN191: 0 | BO191: 0 | BP191: 0 | BQ191: 0 | BR191: 0 | BS191: 0 | BT191: 0 | BU191: 0 | BV191: 0 | BW191: 0 | BX191: 0 | BY191: 0 | BZ191: 0 | CA191: 0 | CB191: 0 | CC191: 0 | CD191: 0 | CE191: 0 | CF191: 0 | CG191: 90966.36706
A192: 192 | F192: (1) | G192: אג"ח קנצרני | J192: 1489957.775 | K192: 26.04382895 | L192: 9239.621122 | M192: 273450.5143 | N192: 9671.390708 | O192: 271277.45 | P192: 21199.8002 | Q192: 113807.22 | R192: 21107.98 | S192: 1835.25099 | T192: 0 | U192: 427841.04 | W192: 28235.05 | X192: 0 | Y192: 1306.399803 | Z192: 132.61901 | AA192: 31676.2 | AC192: 22624.52792 | AD192: 34760.23387 | AE192: 33811.46413 | AF192: 36861.01656 | AG192: 23256.35772 | AH192: 254.1520845 | AI192: 2862.806128 | AJ192: 4499.965869 | AK192: 24830.14344 | AL192: 12516.95228 | AT192: 1955.26 | CG192: 80918.31491
A193: 193 | F193: (2) | G193: אג"ח ממשלתי | J193: 0 | K193: 0 | L193: 0 | M193: 0 | N193: 0 | P193: 0 | S193: 0 | T193: 0 | X193: 0 | Y193: 0 | Z193: 0 | AC193: 0 | AD193: 0 | AE193: 0 | AF193: 0 | AG193: 0 | AH193: 0 | AI193: 0 | AJ193: 0 | AK193: 0 | AL193: 0 | CG193: 0
A194: 194 | F194: (3) | G194: מניות | J194: 1144166.572 | K194: 37.37661219 | L194: 13260.17523 | M194: 392440.5219 | N194: 13879.82621 | O194: 337495.1 | P194: 0 | Q194: 13245.31 | R194: 25.09 | S194: 101270.0854 | T194: 0 | U194: 75481.45 | W194: 0.91 | X194: 0 | Y194: 0 | Z194: 7317.984594 | AC194: 52617.50256 | AD194: 29004.73872 | AE194: 15657.59196 | AF194: 38927.24413 | AG194: 5906.886844 | AH194: 591.0774363 | AI194: 2388.791285 | AJ194: 2083.868038 | AK194: 26221.98587 | AL194: 3179.183156 | AM194: 2801.86 | AT194: 283.96 | CG194: 10048.05215
A195: 195 | F195: (4) | G195: אחר | J195: 0 | K195: 0 | L195: 0 | M195: 0 | N195: 0 | P195: 0 | S195: 0 | T195: 0 | X195: 0 | Y195: 0 | Z195: 0 | AC195: 0 | AD195: 0 | AE195: 0 | AF195: 0 | AG195: 0 | AH195: 0 | AI195: 0 | AJ195: 0 | AK195: 0 | AL195: 0 | CG195: 0
A196: 196 | AC196: 0 | AD196: 0 | AE196: 0 | AF196: 0 | AG196: 0 | AH196: 0 | AI196: 0 | AJ196: 0 | AK196: 0 | AL196: 0 | CG196: 0
A197: 197 | D197: 7) | E197: קרנות השקעה | J197: 11394407.94 | K197: 324.3378551 | L197: 115065.9875 | M197: 3405426.808 | N197: 120443.0471 | O197: 3718332.46 | P197: 45649.79308 | Q197: 921998.02 | R197: 245050.19 | S197: 336152.5552 | T197: 0 | U197: 0 | V197: 0 | W197: 2291.78 | X197: 0 | Y197: 2813.086923 | Z197: 24291.07481 | AA197: 3479.03 | AB197: 0 | AC197: 492760.9815 | AD197: 209667.4969 | AE197: 268407.4037 | AF197: 296059.2678 | AG197: 101985.8674 | AH197: 5535.41851 | AI197: 17267.93315 | AJ197: 35722.32634 | AK197: 199430.0422 | AL197: 54890.46264 | AM197: 82534.41 | AN197: 0 | AO197: 0 | AP197: 0 | AQ197: 0 | AR197: 0 | AS197: 0 | AT197: 0 | AU197: 0 | AV197: 0 | AW197: 0 | AX197: 0 | AY197: 0 | AZ197: 0 | BA197: 0 | BB197: 0 | BC197: 0 | BD197: 0 | BE197: 0 | BF197: 0 | BG197: 0 | BH197: 0 | BI197: 0 | BJ197: 0 | BK197: 0 | BL197: 0 | BM197: 0 | BN197: 0 | BO197: 0 | BP197: 0 | BQ197: 0 | BR197: 0 | BS197: 0 | BT197: 0 | BU197: 0 | BV197: 0 | BW197: 0 | BX197: 0 | BY197: 0 | BZ197: 0 | CA197: 0 | CB197: 0 | CC197: 0 | CD197: 0 | CE197: 0 | CF197: 0 | CG197: 688828.16
A198: 198 | E198: א) | F198: בישראל | J198: 1878921.34 | K198: 75.89673514 | L198: 26926.03604 | M198: 796887.4814 | N198: 28184.2958 | O198: 587730.6 | P198: 5180.387856 | Q198: 124758.57 | R198: 28085.26 | S198: 44150.92349 | T198: 0 | U198: 0 | V198: 0 | W198: 173.45 | X198: 0 | Y198: 319.2321443 | Z198: 3190.436511 | AA198: 0 | AB198: 0 | AC198: 38156.12411 | AD198: 16327.95184 | AE198: 17876.21548 | AF198: 22002.4224 | AG198: 6035.925909 | AH198: 428.6258928 | AI198: 1344.748161 | AJ198: 2379.144518 | AK198: 14821.1676 | AL198: 3248.634091 | AM198: 5677.54 | AN198: 0 | AO198: 0 | AP198: 0 | AQ198: 0 | AR198: 0 | AS198: 0 | AT198: 0 | AU198: 0 | AV198: 0 | AW198: 0 | AX198: 0 | AY198: 0 | AZ198: 0 | BA198: 0 | BB198: 0 | BC198: 0 | BD198: 0 | BE198: 0 | BF198: 0 | BG198: 0 | BH198: 0 | BI198: 0 | BJ198: 0 | BK198: 0 | BL198: 0 | BM198: 0 | BN198: 0 | BO198: 0 | BP198: 0 | BQ198: 0 | BR198: 0 | BS198: 0 | BT198: 0 | BU198: 0 | BV198: 0 | BW198: 0 | BX198: 0 | BY198: 0 | BZ198: 0 | CA198: 0 | CB198: 0 | CC198: 0 | CD198: 0 | CE198: 0 | CF198: 0 | CG198: 104960.27
A199: 199 | F199: (1) | G199: קרנות הון סיכון | J199: 178386.83 | K199: 6.886602666 | L199: 2443.173758 | M199: 72306.76582 | N199: 2557.34382 | O199: 54473.84 | P199: 0 | Q199: 8495.35 | R199: 2203.18 | S199: 4793.45508 | T199: 0 | X199: 0 | Y199: 0 | Z199: 346.38492 | AC199: 6064.860537 | AD199: 2738.861083 | AE199: 2156.527832 | AF199: 2924.023282 | AG199: 453.252232 | AH199: 68.12946344 | AI199: 225.5689165 | AJ199: 287.0121684 | AK199: 1969.666718 | AL199: 243.947768 | AM199: 1360.11 | CG199: 12268.49
A200: 200 | F200: (2) | G200: קרנות גידור | J200: 345162.93 | K200: 13.71303921 | L200: 4865.002262 | M200: 143981.8098 | N200: 5092.344919 | O200: 124256.98 | P200: 1547.47935 | Q200: 17788.45 | R200: 2948.73 | S200: 15584.88422 | T200: 0 | W200: 173.45 | X200: 0 | Y200: 95.36064964 | Z200: 1126.195778 | AC200: 6144.673954 | AD200: 1898.270956 | AE200: 2421.926004 | AF200: 2599.814958 | AG200: 1132.974555 | AH200: 69.02604553 | AI200: 156.3390438 | AJ200: 322.3339963 | AK200: 1751.275042 | AL200: 609.7854448 | AM200: 389.8 | CG200: 10192.31
A201: 201 | F201: (3) | G201: קרנות נדל"ן | J201: 100056.69 | K201: 1.156743439 | L201: 410.3801763 | M201: 12145.37575 | N201: 429.5573347 | O201: 38759.66 | P201: 654.4694874 | Q201: 15970.98 | R201: 2747.58 | S201: 0 | T201: 0 | X201: 0 | Y201: 40.33051263 | Z201: 0 | AC201: 5583.141911 | AD201: 2239.701219 | AE201: 2409.129138 | AF201: 2831.46318 | AG201: 1812.274311 | AH201: 62.71808897 | AI201: 184.4587812 | AJ201: 320.6308622 | AK201: 1907.31682 | AL201: 975.3956889 | AM201: 924.18 | CG201: 9646.79
A202: 202 | F202: (4) | G202: קרנות השקעה אחרות | J202: 1255314.89 | K202: 54.14034982 | L202: 19207.47985 | M202: 568453.5301 | N202: 20105.04973 | O202: 370240.12 | P202: 2978.439018 | Q202: 82503.79 | R202: 20185.77 | S202: 23772.58419 | T202: 0 | X202: 0 | Y202: 183.540982 | Z202: 1717.855812 | AC202: 20363.44771 | AD202: 9451.11858 | AE202: 10888.63251 | AF202: 13647.12098 | AG202: 2637.42481 | AH202: 228.7522949 | AI202: 778.3814195 | AJ202: 1449.167491 | AK202: 9192.909018 | AL202: 1419.50519 | AM202: 3003.45 | CG202: 72852.68
... 334 more rows
